Workbook

Sheet Instructions
A1: Jar Test Program
A2: Instructions
A3: Enter Data:
A4: Enter jar test data into the DataEntry worksheet.
A5: The StockSolutionHELP worksheet provides information on making stock solutions.
A6: The JarSettingsHELP worksheet provides information on setting mixing speeds and settling times.
A7: The results from individual jar tests can be saved to the Database worksheet by clicking on the Updata Database Button
A8: found in the DataEntry worksheet.
A9: Results from a previous jar test can be retrieved from the database by inputting the jar test date and number and clicking
A10: on the Retrieve Button found in the DataEntry worksheet.
B13: =A1 -> Jar Test Program
B14: FILE: | C14: JarTest39.xlsM
B15: AUTHORS: | C15: L. DeMers, K. Rakness, and B. Hegg
B16: COMPANY: | C16: Process Applications, Inc.
B17: PURPOSE: | C17: Spreadsheet to support jar testing
B18: CONTRIBUTORS: J. Schulze (TNRCC), J. Roney (KYDOW), J. Williams (LDHH)
A20: DATE MODIFIED: | C20: MODIFICATIONS & BY WHOM:
A21: 1998-07-15 | B21: LDD developed program for Franklin CTA.
A22: 1999-07-20 | B22: LDD added comments for data entry cells
A23: 1999-07-27 | B23: LDD modified per use at TNRCC IT session (corrected error in polymer aid calc, modified chart)
B24: Worksheet is protected except for data entry cells. Worksheet can be unprotected to modify.
A25: 1999-08-02 | B25: LDD added calculation of jar RPM based on water temperature and desired G value.
A26: 2000-06-12 | B26: KLR added macro to update database and retrieve data from the database.
A27: 2000-06-19 | B27: LDD modified settling time calcs to consider rectangular and circular basin configurations.
A28: 2001-05-25 | B28: LDD added worksheets to calculation velocity gradients for different types of mixers.
A29: 2001-07-20 | B29: LDD modified settling time calcs based on settling velocity with and without tube settlers.
A30: 2001-08-15 | B30: LDD added velocity gradient calculations for walking beam flocculator.
A31: 2001-09-19 | B31: LDD added rapid mix velocity gradient input and HELP buttons for mixing worksheets.
A32: 2001-12-04 | B32: LDD corrected error in rpm calculation based on input G value.
A33: 2002-01-14 | B33: LDD added flexibility to use either 1 L or 2 L jars for making stock solutions.
A34: 2003-03-18 | B34: LDD added enhancements to the velocity gradient worksheets (provided by J. Schulze).
A35: 2003-03-18 | B35: LDD added calibration data worksheet (provided by J. Roney).
A36: 2003-03-18 | B36: LDD revised stock solution help screen to include additional information and consolidate calculations;
B37: modifications also made to input screen.
A38: 2003-04-01 | B38: LDD added head loss calculations to HydraulicMixHELP worksheet (provided by J. Williams).
A39: 2004-08-26 | B39: LDD added flexibilty to stock solution table.
A40: 2005-05-09 | B40: LDD corrected error in V^2/2g formula (in HydraulicMixHELP). Added two rapid mix segments.
A41: 2008-04-11 | B41: LDD added updated calibration data worksheet and modified flow and volume inputs to be consistent.
B42: Renamed file to JARTEST32.
A43: 2008-07-10 | B43: LDD fixed hidden row in the HydraulicMix worksheet and corrected spelling errors in worksheets.
B44: Added pictures and mixer clarification. Changed name to JARTEST33.
A45: 2009-08-03 | B45: LDD added additional tables for hydraulic, turbine, and paddle mixing calculations. Modified calibratation
B46: data collection forms. Changed name to JARTEST34.
A47: 2009-08-03 | B47: LDD added NozzleMix worksheet for pump injection rapid mix applications. Enhancements made to
B48: additional hydaulic input tables. Changed name to JARTEST35.
A49: 2010-02-18 | B49: LDD corrected temperature cell reference error in 2nd and 3rd flocculation mix tables.
B50: Added 3rd segment for rapid mix. Change to JARTEST36.
A51: 2010-06-30 | B51: LDD added notes on plate settler concepts and corrected formula to determine settling distance in plates
B52: or tubes (minor change).
A53: 2010-09-30 | B53: LDD change name to JARTEST37. No changes other than those noted for 6/30/09.
A54: 2017-10-12 | B54: LDD added flexibility to use either 1 or 2 L square jars for the testing. File name updated to JARTEST38.
B55: Added section to determine equivalent G x T for rapid mix.
B56: Added open channel flow friction losses calculations in hydraulic mix worksheet.
A57: 2018-12-06 | B57: LDD corrected formula errors in Hydraulic Mix worksheet related to open channel head loss.
B58: Modified G x T input section in Jar Setting Help worksheet. File name updated to JarTest39.
A60: Model by: Process Applications, Inc. Fort Collins, CO 970-223-5787

Sheet Lookup (hidden)
B1: ="Jar Test Summary for "&B4&" WTP" -> 
B2: Step 1 - Enter plant background data. Enter data in cells with white background only.
B3: Plant/Train Name | C3: Date | D3: Test No. | E3: Test Time, hr:min | G3: Test Date | I3: Warning: Do not enter data
B4: =VLOOKUP(Lookup!$D$49,DatabaseJar,Database!C5) ->  | C4: =VLOOKUP(Lookup!$D$49,DatabaseJar,Database!B5) ->  | D4: =VLOOKUP(Lookup!$D$49,DatabaseJar,Database!E5) ->  | E4: =VLOOKUP(Lookup!$D$49,DatabaseJar,Database!F5) ->  | G4: Test No. | I4: in this screen. It is used to
B5: Water Source | C5: Flow Rate (MGD) | D5: Raw Turbidity | E5: Water Temp (C) | F5: Raw pH | G5: Raw Alk. (mg/L) | H5: Raw TOC (mg/L) | I5: retrieve data from the database.
B6: =VLOOKUP(Lookup!$D$49,DatabaseJar,Database!D5) ->  | C6: =VLOOKUP(Lookup!$D$49,DatabaseJar,Database!I5) ->  | D6: =VLOOKUP(Lookup!$D$49,DatabaseJar,Database!G5) ->  | E6: =VLOOKUP(Lookup!$D$49,DatabaseJar,Database!H5) ->  | F6: =VLOOKUP(Lookup!$D$49,DatabaseJar,Database!J5) ->  | G6: =VLOOKUP(Lookup!$D$49,DatabaseJar,Database!L5) ->  | H6: =VLOOKUP(Lookup!$D$49,DatabaseJar,Database!K5) -> 
B7: Chemical | C7: Coagulant | D7: Other Chemical 1 | E7: Other Chemical 2 | F7: Settled Turbidity | G7: IFE Turbidity | H7: Treated TOC (mg/L)
B8: Name | C8: =VLOOKUP(Lookup!$D$49,DatabaseJar,Database!M5) ->  | D8: =VLOOKUP(Lookup!$D$49,DatabaseJar,Database!O5) ->  | E8: =VLOOKUP(Lookup!$D$49,DatabaseJar,Database!Q5) ->  | F8: =VLOOKUP(Lookup!$D$49,DatabaseJar,Database!S5) ->  | G8: =VLOOKUP(Lookup!$D$49,DatabaseJar,Database!T5) ->  | H8: =VLOOKUP(Lookup!$D$49,DatabaseJar,Database!U5) -> 
B9: Current Dose | C9: =VLOOKUP(Lookup!$D$49,DatabaseJar,Database!$N$5) ->  | D9: =VLOOKUP(Lookup!$D$49,DatabaseJar,Database!$P$5) ->  | E9: =VLOOKUP(Lookup!$D$49,DatabaseJar,Database!$R$5) -> 
B11: Step 2 - Enter jar test settings. Click Jar Settings HELP Button for guidance on setting parameters.
C12: Rapid Mix #1 | D12: Rapid Mix #2 | E12: Floc, Stage 1 | F12: Floc, Stage 2 | G12: Floc, Stage 3 | H12: Settle Time (min)
B13: Speed (RPM) | C13: =VLOOKUP(Lookup!$D$49,DatabaseJar,Database!$V$5) ->  | D13: =VLOOKUP(Lookup!$D$49,DatabaseJar,Database!$X$5) ->  | E13: =VLOOKUP(Lookup!$D$49,DatabaseJar,Database!$Z$5) ->  | F13: =VLOOKUP(Lookup!$D$49,DatabaseJar,Database!$AB$5) ->  | G13: =VLOOKUP(Lookup!$D$49,DatabaseJar,Database!$AD$5) -> 
B14: Time (sec, min) | C14: =VLOOKUP(Lookup!$D$49,DatabaseJar,Database!$W$5) ->  | D14: =VLOOKUP(Lookup!$D$49,DatabaseJar,Database!$Y$5) ->  | E14: =VLOOKUP(Lookup!$D$49,DatabaseJar,Database!$AA$5) ->  | F14: =VLOOKUP(Lookup!$D$49,DatabaseJar,Database!$AC$5) ->  | G14: =VLOOKUP(Lookup!$D$49,DatabaseJar,Database!$AE$5) ->  | H14: =VLOOKUP(Lookup!$D$49,DatabaseJar,Database!$AF$5) -> 
B17: Step 3 - Enter desired dose to determine volume of stock solution for each jar.
B18: Click on Stock Solution HELP Button for guidance on preparing stock solutions.
B20: Desired Stock | C20: Coagulant | D20: Other Chemical 1 | E20: Other Chemical 2 | F20: Raw Water Added to Jars (mL)
B21: Solution Concentration (%) | C21: =VLOOKUP(Lookup!$D$49,DatabaseJar,Database!$AG$5) ->  | D21: =VLOOKUP(Lookup!$D$49,DatabaseJar,Database!$AH$5) ->  | E21: =VLOOKUP(Lookup!$D$49,DatabaseJar,Database!$AI$5) ->  | F21: =VLOOKUP(Lookup!$D$49,DatabaseJar,Database!$AJ$5) -> 
B22: Coagulant Jar # | C22: 1 | D22: 2 | E22: 3 | F22: 4 | G22: 5 | H22: 6
B23: Coagulant Dose (mg/L) | C23: =VLOOKUP(Lookup!$D$49,DatabaseJar,Database!$AK$5) ->  | D23: =VLOOKUP(Lookup!$D$49,DatabaseJar,Database!$AU$5) ->  | E23: =VLOOKUP(Lookup!$D$49,DatabaseJar,Database!$BE$5) ->  | F23: =VLOOKUP(Lookup!$D$49,DatabaseJar,Database!$BO$5) ->  | G23: =VLOOKUP(Lookup!$D$49,DatabaseJar,Database!$BY$5) ->  | H23: =VLOOKUP(Lookup!$D$49,DatabaseJar,Database!$CI$5) -> 
B24: Stock Solution (mL) | C24: =IF(C23=0,"",StockSolutionsHELP!$E$11*C23/(StockSolutionsHELP!$D$48*10000)) ->  | D24: =IF(D23=0,"",StockSolutionsHELP!$E$11*D23/(StockSolutionsHELP!$D$48*10000)) ->  | E24: =IF(E23=0,"",StockSolutionsHELP!$E$11*E23/(StockSolutionsHELP!$D$48*10000)) ->  | F24: =IF(F23=0,"",StockSolutionsHELP!$E$11*F23/(StockSolutionsHELP!$D$48*10000)) ->  | G24: =IF(G23=0,"",StockSolutionsHELP!$E$11*G23/(StockSolutionsHELP!$D$48*10000)) ->  | H24: =IF(H23=0,"",StockSolutionsHELP!$E$11*H23/(StockSolutionsHELP!$D$48*10000)) -> 
B26: Other Chem. 1 Dose (mg/L) | C26: =VLOOKUP(Lookup!$D$49,DatabaseJar,Database!$AL$5) ->  | D26: =VLOOKUP(Lookup!$D$49,DatabaseJar,Database!$AV$5) ->  | E26: =VLOOKUP(Lookup!$D$49,DatabaseJar,Database!$BF$5) ->  | F26: =VLOOKUP(Lookup!$D$49,DatabaseJar,Database!$BP$5) ->  | G26: =VLOOKUP(Lookup!$D$49,DatabaseJar,Database!$BZ$5) ->  | H26: =VLOOKUP(Lookup!$D$49,DatabaseJar,Database!$CJ$5) -> 
B27: Stock Solution (mL) | C27: =IF(C26=0,"",StockSolutionsHELP!$E$11*C26/(StockSolutionsHELP!$E$48*10000)) ->  | D27: =IF(D26=0,"",StockSolutionsHELP!$E$11*D26/(StockSolutionsHELP!$E$48*10000)) ->  | E27: =IF(E26=0,"",StockSolutionsHELP!$E$11*E26/(StockSolutionsHELP!$E$48*10000)) ->  | F27: =IF(F26=0,"",StockSolutionsHELP!$E$11*F26/(StockSolutionsHELP!$E$48*10000)) ->  | G27: =IF(G26=0,"",StockSolutionsHELP!$E$11*G26/(StockSolutionsHELP!$E$48*10000)) ->  | H27: =IF(H26=0,"",StockSolutionsHELP!$E$11*H26/(StockSolutionsHELP!$E$48*10000)) -> 
B29: Other Chem. 2 Dose (mg/L) | C29: =VLOOKUP(Lookup!$D$49,DatabaseJar,Database!$AM$5) ->  | D29: =VLOOKUP(Lookup!$D$49,DatabaseJar,Database!$AW$5) ->  | E29: =VLOOKUP(Lookup!$D$49,DatabaseJar,Database!$BG$5) ->  | F29: =VLOOKUP(Lookup!$D$49,DatabaseJar,Database!$BQ$5) ->  | G29: =VLOOKUP(Lookup!$D$49,DatabaseJar,Database!$CA$5) ->  | H29: =VLOOKUP(Lookup!$D$49,DatabaseJar,Database!$CK$5) -> 
B30: Stock Solution (mL) | C30: =IF(C29=0,"",StockSolutionsHELP!$E$11*C29/(StockSolutionsHELP!$F$48*10000)) ->  | D30: =IF(D29=0,"",StockSolutionsHELP!$E$11*D29/(StockSolutionsHELP!$F$48*10000)) ->  | E30: =IF(E29=0,"",StockSolutionsHELP!$E$11*E29/(StockSolutionsHELP!$F$48*10000)) ->  | F30: =IF(F29=0,"",StockSolutionsHELP!$E$11*F29/(StockSolutionsHELP!$F$48*10000)) ->  | G30: =IF(G29=0,"",StockSolutionsHELP!$E$11*G29/(StockSolutionsHELP!$F$48*10000)) ->  | H30: =IF(H29=0,"",StockSolutionsHELP!$E$11*H29/(StockSolutionsHELP!$F$48*10000)) -> 
B32: Step 4 - Conduct jar test and enter results below.
B33: Jar Number | C33: 1 | D33: 2 | E33: 3 | F33: 4 | G33: 5 | H33: 6
B34: Coagulant Dose (mg/L) | C34: =IF(DataEntry!C23=0,0,DataEntry!C23) -> 0 | D34: =IF(DataEntry!D23=0,0,DataEntry!D23) -> 0 | E34: =IF(DataEntry!E23=0,0,DataEntry!E23) -> 0 | F34: =IF(DataEntry!F23=0,0,DataEntry!F23) -> 0 | G34: =IF(DataEntry!G23=0,0,DataEntry!G23) -> 0 | H34: =IF(DataEntry!H23=0,0,DataEntry!H23) -> 0
B35: Other Chemical 1 (mg/L) | C35: =IF(DataEntry!C26=0,0,DataEntry!C26) -> 0 | D35: =IF(DataEntry!D26=0,0,DataEntry!D26) -> 0 | E35: =IF(DataEntry!E26=0,0,DataEntry!E26) -> 0 | F35: =IF(DataEntry!F26=0,0,DataEntry!F26) -> 0 | G35: =IF(DataEntry!G26=0,0,DataEntry!G26) -> 0 | H35: =IF(DataEntry!H26=0,0,DataEntry!H26) -> 0
B36: Other Chemical 2 (mg/L) | C36: =IF(DataEntry!C29=0,0,DataEntry!C29) -> 0 | D36: =IF(DataEntry!D29=0,0,DataEntry!D29) -> 0 | E36: =IF(DataEntry!E29=0,0,DataEntry!E29) -> 0 | F36: =IF(DataEntry!F29=0,0,DataEntry!F29) -> 0 | G36: =IF(DataEntry!G29=0,0,DataEntry!G29) -> 0 | H36: =IF(DataEntry!H29=0,0,DataEntry!H29) -> 0
B37: Time to floc formation (min) | C37: =VLOOKUP(Lookup!$D$49,DatabaseJar,Database!$AN$5) ->  | D37: =VLOOKUP(Lookup!$D$49,DatabaseJar,Database!$AX$5) ->  | E37: =VLOOKUP(Lookup!$D$49,DatabaseJar,Database!$BH$5) ->  | F37: =VLOOKUP(Lookup!$D$49,DatabaseJar,Database!$BR$5) ->  | G37: =VLOOKUP(Lookup!$D$49,DatabaseJar,Database!$CB$5) ->  | H37: =VLOOKUP(Lookup!$D$49,DatabaseJar,Database!$CL$5) -> 
B38: Size of floc at mix end (mm) | C38: =VLOOKUP(Lookup!$D$49,DatabaseJar,Database!$AO$5) ->  | D38: =VLOOKUP(Lookup!$D$49,DatabaseJar,Database!$AY$5) ->  | E38: =VLOOKUP(Lookup!$D$49,DatabaseJar,Database!$BI$5) ->  | F38: =VLOOKUP(Lookup!$D$49,DatabaseJar,Database!$BS$5) ->  | G38: =VLOOKUP(Lookup!$D$49,DatabaseJar,Database!$CC$5) ->  | H38: =VLOOKUP(Lookup!$D$49,DatabaseJar,Database!$CM$5) -> 
B39: Settled Turbidity (NTU) | C39: =VLOOKUP(Lookup!$D$49,DatabaseJar,Database!$AP$5) ->  | D39: =VLOOKUP(Lookup!$D$49,DatabaseJar,Database!$AZ$5) ->  | E39: =VLOOKUP(Lookup!$D$49,DatabaseJar,Database!$BJ$5) ->  | F39: =VLOOKUP(Lookup!$D$49,DatabaseJar,Database!$BT$5) ->  | G39: =VLOOKUP(Lookup!$D$49,DatabaseJar,Database!$CD$5) ->  | H39: =VLOOKUP(Lookup!$D$49,DatabaseJar,Database!$CN$5) -> 
B40: Settled pH | C40: =VLOOKUP(Lookup!$D$49,DatabaseJar,Database!$AQ$5) ->  | D40: =VLOOKUP(Lookup!$D$49,DatabaseJar,Database!$BA$5) ->  | E40: =VLOOKUP(Lookup!$D$49,DatabaseJar,Database!$BK$5) ->  | F40: =VLOOKUP(Lookup!$D$49,DatabaseJar,Database!$BU$5) ->  | G40: =VLOOKUP(Lookup!$D$49,DatabaseJar,Database!$CE$5) ->  | H40: =VLOOKUP(Lookup!$D$49,DatabaseJar,Database!$CO$5) -> 
B41: Filtered Turbidity (NTU) | C41: =VLOOKUP(Lookup!$D$49,DatabaseJar,Database!$AR$5) ->  | D41: =VLOOKUP(Lookup!$D$49,DatabaseJar,Database!$BB$5) ->  | E41: =VLOOKUP(Lookup!$D$49,DatabaseJar,Database!$BL$5) ->  | F41: =VLOOKUP(Lookup!$D$49,DatabaseJar,Database!$BV$5) ->  | G41: =VLOOKUP(Lookup!$D$49,DatabaseJar,Database!$CF$5) ->  | H41: =VLOOKUP(Lookup!$D$49,DatabaseJar,Database!$CP$5) -> 
B42: Settled TOC (mg/L) | C42: =VLOOKUP(Lookup!$D$49,DatabaseJar,Database!$AS$5) ->  | D42: =VLOOKUP(Lookup!$D$49,DatabaseJar,Database!$BC$5) ->  | E42: =VLOOKUP(Lookup!$D$49,DatabaseJar,Database!$BM$5) ->  | F42: =VLOOKUP(Lookup!$D$49,DatabaseJar,Database!$BW$5) ->  | G42: =VLOOKUP(Lookup!$D$49,DatabaseJar,Database!$CG$5) ->  | H42: =VLOOKUP(Lookup!$D$49,DatabaseJar,Database!$CQ$5) -> 
B43: Filtered UV Absorb. (cm-1) | C43: =VLOOKUP(Lookup!$D$49,DatabaseJar,Database!$AT$5) ->  | D43: =VLOOKUP(Lookup!$D$49,DatabaseJar,Database!$BD$5) ->  | E43: =VLOOKUP(Lookup!$D$49,DatabaseJar,Database!$BN$5) ->  | F43: =VLOOKUP(Lookup!$D$49,DatabaseJar,Database!$BX$5) ->  | G43: =VLOOKUP(Lookup!$D$49,DatabaseJar,Database!$CH$5) ->  | H43: =VLOOKUP(Lookup!$D$49,DatabaseJar,Database!$CR$5) -> 
B44: TOC Removal, % | C44: =IF($G$6=0,,1-C42/$H$6) -> 
B45: TOC Removal, %
F48: =VLOOKUP(Lookup!$G$49,DatabaseJar,Database!$B$5) ->  | G48: =VLOOKUP(Lookup!$G$49,DatabaseJar,Database!$E$5) -> 
C49: retrievedatesample | D49: =ROUND(DataEntry!$H$3,0)+ROUND(DataEntry!$H$4/100,2) -> 0 | F49: Inputdatetest | G49: =ROUND(DataEntry!$C$4,0)+ROUND(DataEntry!$D$4/100,2) -> 0
C51: lookupdatesample | D51: =ROUND($C$4,0)+ROUND($D$4/100,2) ->  | F51: lookupdatesample | G51: =ROUND(F48,0)+ROUND(G48/100,2) -> 
C53: CheckRetrieveDate | D53: =IF(D51=D49,1,2) ->  | F53: CheckDatabase | G53: =IF(G51=G49,1,2) -> 

Sheet DataEntry
B1: ="Jar Test Summary for "&B4&" WTP" -> Jar Test Summary for WTP
B2: Step 1 - Enter plant background data. Enter data in cells with white background only
B3: Plant/Train Name | C3: Date | D3: Test No. | E3: Test Time, hr:min | G3: Test Date
G4: Test No.
B5: Water Source | C5: Flow Rate (MGD) | D5: Raw Turbidity | E5: Water Temp (C) | F5: Raw pH | G5: Raw Alk. (mg/L) | H5: Raw TOC (mg/L)
B7: Chemical | C7: Coagulant | D7: Other Chemical 1 | E7: Other Chemical 2 | F7: Settled Turbidity | G7: IFE Turbidity | H7: Treated TOC (mg/L)
B8: Name
B9: Current Dose
B11: Step 2 - Enter jar test settings. Click Jar Settings HELP Button for guidance on setting parameters.
C12: Rapid Mix #1 | D12: Rapid Mix #2 | E12: Floc, Stage 1 | F12: Floc, Stage 2 | G12: Floc, Stage 3 | H12: Settle Time (min)
B13: Speed (RPM)
B14: Time (min)
B17: Step 3 - Enter desired dose to determine volume of stock solution for each jar.
B18: Click on Stock Solution HELP Button for guidance on preparing stock solutions.
B20: Desired Stock | C20: Coagulant | D20: Other Chemical 1 | E20: Other Chemical 2 | F20: Raw Water Added to Jars (mL)
B21: Solution Concentration (%)
B22: Jar # | C22: 1 | D22: 2 | E22: 3 | F22: 4 | G22: 5 | H22: 6
B23: Coagulant Dose (mg/L)
B24: Stock Solution (mL) | C24: =IF(C23=0,"",$F$21*C23/($C$21*10000)) -> 
B26: Other Chem. 1 Dose (mg/L)
B27: Stock Solution (mL) | C27: =IF(C26=0,"",$F$21*C26/($D$21*10000)) -> 
B29: Neat Chem. Dose (mg/L)
B30: Stock Solution (mL) | C30: ='Neat chemical help'!C12 -> 30.90740741 | D30: ='Neat chemical help'!D12 -> 18.54444444 | E30: ='Neat chemical help'!E12 -> 92.72222222 | F30: ='Neat chemical help'!F12 -> 24.72592593 | G30: ='Neat chemical help'!G12 -> 27.81666667 | H30: ='Neat chemical help'!H12 -> 40.17962963 | J30: Note: If adding chemical Neat (No stock solution) click here for neat chemical help:
B32: Step 4 - Conduct jar test and enter results below.
B33: Jar Number | C33: 1 | D33: 2 | E33: 3 | F33: 4 | G33: 5 | H33: 6
B34: Coagulant Dose (mg/L) | C34: =IF(DataEntry!C23=0,0,DataEntry!C23) -> 0 | D34: =IF(DataEntry!D23=0,0,DataEntry!D23) -> 0 | E34: =IF(DataEntry!E23=0,0,DataEntry!E23) -> 0 | F34: =IF(DataEntry!F23=0,0,DataEntry!F23) -> 0 | G34: =IF(DataEntry!G23=0,0,DataEntry!G23) -> 0 | H34: =IF(DataEntry!H23=0,0,DataEntry!H23) -> 0
B35: Other Chemical 1 (mg/L) | C35: =IF(DataEntry!C26=0,0,DataEntry!C26) -> 0 | D35: =IF(DataEntry!D26=0,0,DataEntry!D26) -> 0 | E35: =IF(DataEntry!E26=0,0,DataEntry!E26) -> 0 | F35: =IF(DataEntry!F26=0,0,DataEntry!F26) -> 0 | G35: =IF(DataEntry!G26=0,0,DataEntry!G26) -> 0 | H35: =IF(DataEntry!H26=0,0,DataEntry!H26) -> 0
B36: Other Chemical 2 (mg/L) | C36: =IF(DataEntry!C29=0,0,DataEntry!C29) -> 0 | D36: =IF(DataEntry!D29=0,0,DataEntry!D29) -> 0 | E36: =IF(DataEntry!E29=0,0,DataEntry!E29) -> 0 | F36: =IF(DataEntry!F29=0,0,DataEntry!F29) -> 0 | G36: =IF(DataEntry!G29=0,0,DataEntry!G29) -> 0 | H36: =IF(DataEntry!H29=0,0,DataEntry!H29) -> 0
B37: Time to floc formation (min)
B38: Size of floc at mix end (mm)
B39: Settled Turbidity (NTU)
B40: Settled pH
B41: Filtered Turbidity (NTU)
B42: Settled TOC (mg/L)
B43: Filtered UV Absorb. (cm-1)
B44: TOC Removal, % | C44: =IF($H$6=0,,1-C42/$H$6) -> 0 | D44: 0 | E44: 0 | F44: 0 | G44: 0 | H44: 0

Sheet StockSolutionsHELP
B2: Stock Solution HELP Screen
B3: The goal of this guideline is to help you "Prepare a Stock Solution"
B4: Table 1: Determining the concentration of the stock solutions
C5: To use Table 1, FIRST determine how much raw water you will be adding to each jar. For example, if you are using 2,000 mL jars and conducting a
C6: conventional jar test, you will typically be adding 2,000 mL to each jar. SECOND, consider the chemical dosages that are to be added to each jar.
C7: For example, you may want the alum dosage to increase by 10 mg/L in each jar. THIRD, identify the stock solution concentration (%) that you need
C8: to prepare and transfer this information to Table 3 below.
C10: Table 1
C11: How much raw water are you going to put in each jar? | E11: 2000 | F11: mL
C12: How much do you want the dosage (mg/L) | E12: Concentration of the stock
C13: to change for each milliliter (mL) of stock solution | E13: solution that you need to prepare
C14: that you add to a jar? | E14: (%) | F14: (Mg/L)
C15: =F15/($E$11) -> 0.05 | E15: 0.01 | F15: =E15*10000 -> 100
C16: 0.25 | E16: 0.05 | F16: =E16*10000 -> 500
C17: 0.5 | E17: 0.1 | F17: 1000
C18: 1 | E18: 0.2 | F18: 2000
C19: 2.5 | E19: 0.5 | F19: 5000
C20: 5 | E20: 1 | F20: 10000
C21: 10 | E21: 2 | F21: =E21*10000 -> 20000
C22: 15 | E22: 3 | F22: =E22*10000 -> 30000
C23: 20 | E23: 4 | F23: 40000
C25: 5 | E25: =C25*E11/10000 -> 1 | F25: =E25*10000 -> 10000
C27: The following equation is used to calculate the Stock Solution Concentration in Table 1:
C28: Stock Solution Concentration (%) =
D29: Desired Dosage (mg/L) x Volume of Raw Water (mL)
D30: Amount of Stock Solution added to each jar (1 mL) x 10,000 (mg/L to % conversion factor)
B31: Table 2: Determining the product strength of liquid chemicals
C32: To determine how much liquid chemical you must use to prepare the stock solution, you must first determine the product strength. Product strength
C33: is the actual (reactive) chemical that is contained in each gallon of liquid. To determine the product strength, you must know the product specific
C34: gravity and percent concentration. For example, liquid alum has a product specific gravity of 1.35 and a percent concentration of about 48 %.
C35: Product specific gravity and percent concentration can be determined from the product supplier and product information sources such as MSDS.
C36: Once the product specific gravity and percent concentration are known, Table 2 can be used to determine the product strength.
C38: Table 2
D39: Coagulant | E39: Other Chemical 1 | F39: Other Chemical 2
C40: Product Strength (%) | D40: 0.485 | E40: 1
C41: Specific Gravity | D41: 1.335 | E41: 1.2
C42: Product Strength (lb/gal) | D42: =IF(D40="","",D40*D41*8.34) -> 5.3999415 | E42: =IF(E40="","",E40*E41*8.34) -> 10.008 | F42: =IF(F40="","",F40*F41*8.34) -> 
B44: Table 3: Making the stock solution
C45: Table 3
C46: Step 1 - Select desired stock solution concentration from Table 1 above
C47: Desired Stock | D47: Coagulant | E47: Other Chemical 1 | F47: Other Chemical 2
C48: Solution Concentration (%) | D48: 20 | E48: 0.2
C50: Step 2 - Determine amount of product to add to flask of indicated size
C51: If product is a DRY
C52: Parameter | D52: Coagulant | E52: Other Chemical 1 | F52: Other Chemical 2
C53: Flask size (mL)
C54: Product Purity, %
C55: Weight to add to flask, gm | D55: =IF(D54=0,,D48*10000*D53/1000000/(D54/100)) -> 0 | E55: =IF(E54=0,,E48*10000*E53/1000000/(E54/100)) -> 0 | F55: =IF(F54=0,,F48*10000*F53/1000000/(F54/100)) -> 0 | G55: =IF(G54=0,,G48*10000*G53/1000000/(G54/100)) -> 0
C57: If product is LIQUID
C58: Parameter | D58: Coagulant | E58: Other Chemical 1 | F58: Other Chemical 2
C59: Flask size (mL) | D59: 1000 | E59: 1000
C60: Product Strength, lb/gal | D60: 5.4 | E60: 10.01
C61: Volume to add to flask, mL | D61: =IF(D60=0,0,$D$48*1000*8.34/100/D60*D59/1000) -> 308.8888889 | E61: =IF(E60=0,0,$E$48*1000*8.34/100/E60*E59/1000) -> 1.666333666 | F61: =IF(F60=0,0,F48*1000*8.34/100/F60*F59/1000) -> 0 | G61: =IF(G60=0,0,$E$48*1000*8.34/100/G60*G59/1000) -> 0
C62: The following equation is used to determine the product volume:
C63: Product volume (mL) = | D63: (% solution) x (flask volume, mL) x (8.34 lb/gal)
D64: 100 x (product strength, lb/gal)

Sheet Calculate (hidden)
N1: Current | O1: Other | P1: Current Dose | Q1: Other | R1: Current Dose | V1: Rapid Mix | W1: Rapid Mix | X1: Rapid Mix | Y1: Rapid Mix | Z1: Floc | AA1: Floc | AB1: Floc | AC1: Floc | AD1: Floc | AE1: Floc | AG1: Stock Solution Concentration | AJ1: Raw Water | AK1: Jar 1 | AL1: Jar 1 | AM1: Jar 1 | AN1: Jar 1 | AO1: Jar 1 | AP1: Jar 1 | AQ1: Jar 1 | AR1: Jar 1 | AS1: Jar 1 | AT1: Jar 1 | AU1: Jar 2 | AV1: Jar 2 | AW1: Jar 2 | AX1: Jar 2 | AY1: Jar 2 | AZ1: Jar 2 | BA1: Jar 2 | BB1: Jar 2 | BC1: Jar 2 | BD1: Jar 2 | BE1: Jar 3 | BF1: Jar 3 | BG1: Jar 3 | BH1: Jar 3 | BI1: Jar 3 | BJ1: Jar 3 | BK1: Jar 3 | BL1: Jar 3 | BM1: Jar 3 | BN1: Jar 3 | BO1: Jar 4 | BP1: Jar 4 | BQ1: Jar 4 | BR1: Jar 4 | BS1: Jar 4 | BT1: Jar 4 | BU1: Jar 4 | BV1: Jar 4 | BW1: Jar 4 | BX1: Jar 4 | BY1: Jar 5 | BZ1: Jar 5 | CA1: Jar 5 | CB1: Jar 5 | CC1: Jar 5 | CD1: Jar 5 | CE1: Jar 5 | CF1: Jar 5 | CG1: Jar 5 | CH1: Jar 5 | CI1: Jar 6 | CJ1: Jar 6 | CK1: Jar 6 | CL1: Jar 6 | CM1: Jar 6 | CN1: Jar 6 | CO1: Jar 6 | CP1: Jar 6 | CQ1: Jar 6 | CR1: Jar 6
A2: Date & | C2: Plant/Train | D2: Water | E2: Test | F2: Test | G2: Raw | H2: Water | I2: Water | J2: Raw | K2: Raw | L2: Raw | M2: Coagulant | N2: Dose | O2: Chemical 1 | P2: Other | Q2: Chemical 2 | R2: Other | S2: Settled | T2: IFE | U2: Finished | V2: Speed | W2: Speed | X2: Speed | Y2: Speed | Z2: Stage 1 | AA2: Stage 1 | AB2: Stage 2 | AC2: Stage 2 | AD2: Stage 3 | AE2: Stage 3 | AF2: Settle | AG2: Coagulant | AH2: Other | AI2: Other | AJ2: Added to | AK2: Coagulant | AL2: Other Chem 1 | AM2: Other Chem 2 | AN2: Time to Floc | AO2: Floc | AP2: Settled | AQ2: Settled | AR2: Filtered | AS2: Settled | AT2: Settled | AU2: Coagulant | AV2: Other Chem 1 | AW2: Other Chem 2 | AX2: Time to Floc | AY2: Floc | AZ2: Settled | BA2: Settled | BB2: Filtered | BC2: Settled | BD2: Settled | BE2: Coagulant | BF2: Other Chem 1 | BG2: Other Chem 2 | BH2: Time to Floc | BI2: Floc | BJ2: Settled | BK2: Settled | BL2: Filtered | BM2: Settled | BN2: Settled | BO2: Coagulant | BP2: Other Chem 1 | BQ2: Other Chem 2 | BR2: Time to Floc | BS2: Floc | BT2: Settled | BU2: Settled | BV2: Filtered | BW2: Settled | BX2: Settled | BY2: Coagulant | BZ2: Other Chem 1 | CA2: Other Chem 2 | CB2: Time to Floc | CC2: Floc | CD2: Settled | CE2: Settled | CF2: Filtered | CG2: Settled | CH2: Settled | CI2: Coagulant | CJ2: Other Chem 1 | CK2: Other Chem 2 | CL2: Time to | CM2: Floc | CN2: Settled | CO2: Settled | CP2: Filtered | CQ2: Settled | CR2: Settled | CS2: Last
A3: Sample No. | B3: Date | C3: Name | D3: Source | E3: No. | F3: Time | G3: Turbidity | H3: Temperature | I3: Flow | J3: pH | K3: TOC | L3: Alkalinity | M3: Name | N3: Coagulant | O3: Name | P3: Chemical 1 | Q3: Name | R3: Chemical 2 | S3: Turbidity | T3: Turbidity | U3: TOC | V3: #1 | W3: #1 | X3: #2 | Y3: #2 | Z3: Speed | AA3: Time | AB3: Speed | AC3: Time | AD3: Speed | AE3: Time | AF3: Time | AH3: Chemical 1 | AI3: Chemical 2 | AJ3: Jars | AK3: Dose | AL3: Dose | AM3: Dose | AN3: Formation | AO3: Size | AP3: Turb | AQ3: pH | AR3: Turb | AS3: TOC | AT3: UV absorb | AU3: Dose | AV3: Dose | AW3: Dose | AX3: Formation | AY3: Size | AZ3: Turb | BA3: pH | BB3: Turb | BC3: TOC | BD3: UV absorb | BE3: Dose | BF3: Dose | BG3: Dose | BH3: Formation | BI3: Size | BJ3: Turb | BK3: pH | BL3: Turb | BM3: TOC | BN3: UV absorb | BO3: Dose | BP3: Dose | BQ3: Dose | BR3: Formation | BS3: Size | BT3: Turb | BU3: pH | BV3: Turb | BW3: TOC | BX3: UV absorb | BY3: Dose | BZ3: Dose | CA3: Dose | CB3: Formation | CC3: Size | CD3: Turb | CE3: pH | CF3: Turb | CG3: TOC | CH3: UV absorb | CI3: Dose | CJ3: Dose | CK3: Dose | CL3: Floc | CM3: Size | CN3: Turb | CO3: pH | CP3: Turb | CQ3: TOC | CR3: UV absorb | CS3: Column
A4: # | B4: m/d/y | E4: # | F4: hr:min | G4: NTU | H4: C | I4: MGD | J4: units | K4: mg/L | L4: mg/L | V4: RPM | W4: min | X4: RPM | Y4: min | Z4: RPM | AA4: min | AB4: RPM | AC4: min | AD4: RPM | AE4: min | AF4: min | AG4: % | AH4: % | AI4: % | AJ4: mL | AK4: mg/L | AL4: mg/L | AM4: mg/L | AN4: min | AO4: mm | AP4: NTU | AQ4: units | AR4: NTU | AS4: mg/L | AT4: cm-1 | AU4: mg/L | AV4: mg/L | AW4: mg/L | AX4: min | AY4: mm | AZ4: NTU | BA4: units | BB4: NTU | BC4: mg/L | BD4: cm-1 | BE4: mg/L | BF4: mg/L | BG4: mg/L | BH4: min | BI4: mm | BJ4: NTU | BK4: units | BL4: NTU | BM4: mg/L | BN4: cm-1 | BO4: mg/L | BP4: mg/L | BQ4: mg/L | BR4: min | BS4: mm | BT4: NTU | BU4: units | BV4: NTU | BW4: mg/L | BX4: cm-1 | BY4: mg/L | BZ4: mg/L | CA4: mg/L | CB4: min | CC4: mm | CD4: NTU | CE4: units | CF4: NTU | CG4: mg/L | CH4: cm-1 | CI4: mg/L | CJ4: mg/L | CK4: mg/L | CL4: min | CM4: mm | CN4: NTU | CO4: units | CP4: NTU | CQ4: mg/L | CR4: cm-1
A5: 1 | B5: 2 | C5: 3 | D5: 4 | E5: 5 | F5: 6 | G5: 7 | H5: 8 | I5: 9 | J5: 10 | K5: 11 | L5: 12 | M5: 13 | N5: 14 | O5: 15 | P5: 16 | Q5: 17 | R5: 18 | S5: 19 | T5: 20 | U5: 21 | V5: 22 | W5: 23 | X5: 24 | Y5: 25 | Z5: 26 | AA5: 27 | AB5: 28 | AC5: 29 | AD5: 30 | AE5: 31 | AF5: 32 | AG5: 33 | AH5: 34 | AI5: 35 | AJ5: 36 | AK5: 37 | AL5: 38 | AM5: 39 | AN5: 40 | AO5: 41 | AP5: 42 | AQ5: 43 | AR5: 44 | AS5: 45 | AT5: 46 | AU5: 47 | AV5: 48 | AW5: 49 | AX5: 50 | AY5: 51 | AZ5: 52 | BA5: 53 | BB5: 54 | BC5: 55 | BD5: 56 | BE5: 57 | BF5: 58 | BG5: 59 | BH5: 60 | BI5: 61 | BJ5: 62 | BK5: 63 | BL5: 64 | BM5: 65 | BN5: 66 | BO5: 67 | BP5: 68 | BQ5: 69 | BR5: 70 | BS5: 71 | BT5: 72 | BU5: 73 | BV5: 74 | BW5: 75 | BX5: 76 | BY5: 77 | BZ5: 78 | CA5: 79 | CB5: 80 | CC5: 81 | CD5: 82 | CE5: 83 | CF5: 84 | CG5: 85 | CH5: 86 | CI5: 87 | CJ5: 88 | CK5: 89 | CL5: 90 | CM5: 91 | CN5: 92 | CO5: 93 | CP5: 94 | CQ5: 95 | CR5: 96 | CS5: 97
A6: =ROUND(B6+E6/100,2) -> 0 | B6: =DataEntry!C4 -> 00:00:00 | C6: =DataEntry!B4 -> 0 | D6: =DataEntry!B6 -> 0 | E6: =DataEntry!$D$4 -> 0 | F6: =DataEntry!E4 -> 00:00:00 | G6: =DataEntry!D6 -> 0 | H6: =DataEntry!E6 -> 0 | I6: =DataEntry!C6 -> 0 | J6: =DataEntry!F6 -> 0 | K6: =DataEntry!H6 -> 0 | L6: =DataEntry!G6 -> 0 | M6: =DataEntry!C8 -> 0 | N6: =DataEntry!C9 -> 0 | O6: =DataEntry!D8 -> 0 | P6: =DataEntry!D9 -> 0 | Q6: =DataEntry!E8 -> 0 | R6: =DataEntry!E9 -> 0 | S6: =DataEntry!F8 -> 0 | T6: =DataEntry!G8 -> 0 | U6: =DataEntry!H8 -> 0 | V6: =DataEntry!C13 -> 0 | W6: =DataEntry!C14 -> 0 | X6: =DataEntry!D13 -> 0 | Y6: =DataEntry!D14 -> 0 | Z6: =DataEntry!E13 -> 0 | AA6: =DataEntry!E14 -> 0 | AB6: =DataEntry!F13 -> 0 | AC6: =DataEntry!F14 -> 0 | AD6: =DataEntry!G13 -> 0 | AE6: =DataEntry!G14 -> 0 | AF6: =DataEntry!H14 -> 0 | AG6: =DataEntry!C21 -> 0 | AH6: =DataEntry!D21 -> 0 | AI6: =DataEntry!E21 -> 0 | AJ6: =DataEntry!F21 -> 0 | AK6: =DataEntry!C23 -> 0 | AL6: =DataEntry!C26 -> 0 | AM6: =DataEntry!C29 -> 0 | AN6: =DataEntry!C37 -> 0 | AO6: =DataEntry!C38 -> 0 | AP6: =DataEntry!C39 -> 0 | AQ6: =DataEntry!C40 -> 0 | AR6: =DataEntry!C41 -> 0 | AS6: =DataEntry!C42 -> 0 | AT6: =DataEntry!C43 -> 0 | AU6: =DataEntry!D23 -> 0 | AV6: =DataEntry!D26 -> 0 | AW6: =DataEntry!D29 -> 0 | AX6: =DataEntry!D37 -> 0 | AY6: =DataEntry!D38 -> 0 | AZ6: =DataEntry!D39 -> 0 | BA6: =DataEntry!D40 -> 0 | BB6: =DataEntry!D41 -> 0 | BC6: =DataEntry!D42 -> 0 | BD6: =DataEntry!D43 -> 0 | BE6: =DataEntry!E23 -> 0 | BF6: =DataEntry!E26 -> 0 | BG6: =DataEntry!D29 -> 0 | BH6: =DataEntry!E37 -> 0 | BI6: =DataEntry!E38 -> 0 | BJ6: =DataEntry!E39 -> 0 | BK6: =DataEntry!E40 -> 0 | BL6: =DataEntry!E41 -> 0 | BM6: =DataEntry!E42 -> 0 | BN6: =DataEntry!E43 -> 0 | BO6: =DataEntry!F23 -> 0 | BP6: =DataEntry!F26 -> 0 | BQ6: =DataEntry!F29 -> 0 | BR6: =DataEntry!F37 -> 0 | BS6: =DataEntry!F38 -> 0 | BT6: =DataEntry!F39 -> 0 | BU6: =DataEntry!F40 -> 0 | BV6: =DataEntry!F41 -> 0 | BW6: =DataEntry!F42 -> 0 | BX6: =DataEntry!F43 -> 0 | BY6: =DataEntry!G23 -> 0 | BZ6: =DataEntry!G26 -> 0 | CA6: =DataEntry!G29 -> 0 | CB6: =DataEntry!G37 -> 0 | CC6: =DataEntry!G38 -> 0 | CD6: =DataEntry!G39 -> 0 | CE6: =DataEntry!G40 -> 0 | CF6: =DataEntry!G41 -> 0 | CG6: =DataEntry!G42 -> 0 | CH6: =DataEntry!G43 -> 0 | CI6: =DataEntry!H23 -> 0 | CJ6: =DataEntry!H26 -> 0 | CK6: =DataEntry!H29 -> 0 | CL6: =DataEntry!H37 -> 0 | CM6: =DataEntry!H38 -> 0 | CN6: =DataEntry!H39 -> 0 | CO6: =DataEntry!H40 -> 0 | CP6: =DataEntry!H41 -> 0 | CQ6: =DataEntry!H42 -> 0 | CR6: =DataEntry!H43 -> 0

Sheet JarG (hidden)
B2: G calculations for jar testing
D3: Impller: 1 inch x 3 inch (25.4 mm x 76 mm) | H3: =25.4*76 -> 1930.4 | O3: Impeller: 40 mm x 60 mm | R3: =40*60 -> 2400
B4: Input 2 liter jar: | M4: Input 1 liter jar based on EC Engineering design and mixing curve.
A5: Diameter | B5: D | C5: =7.5/2.54/12 -> 0.2460629921 | D5: ft | L5: Diameter | M5: D | N5: =7.7/2.54/12 -> 0.2526246719 | O5: ft | P5: 7.7 cm versus 6 cm to match vendor curve
B6: Np | C6: 3 | D6: FBT | E6: Adjusted from recommended value of 3.6 for flat blade turbine to fit original curve | M6: Np | N6: 3 | O6: FBT
A7: Specific gravity | B7: S | C7: 1 | L7: Specific gravity | M7: S | N7: 1
A8: Volume | B8: V | C8: =2/3.785/7.48 -> 0.07064192316 | D8: ft3 | L8: Volume | M8: V | N8: =1/3.785/7.48 -> 0.03532096158 | O8: ft3
A9: Viscosity | B9: u | C9: 3.746e-05 | D9: lb-sec/ft2 @ 0C | M9: u | N9: 3.746e-05 | O9: lb-sec/ft2 @ 0C
B10: u | C10: =0.00003229 -> 3.229e-05 | D10: lb-sec/ft2 @ 4C | M10: u | N10: =0.00003229 -> 3.229e-05 | O10: lb-sec/ft2 @ 4C
B11: u | C11: 2.735e-05 | D11: lb-sec/ft2 @ 10C | M11: u | N11: 2.735e-05 | O11: lb-sec/ft2 @ 10C
B12: u | C12: 2.359e-05 | D12: lb-sec/ft2 @ 16C | M12: u | N12: 2.359e-05 | O12: lb-sec/ft2 @ 16C
B13: u | C13: 2.05e-05 | D13: lb-sec/ft2 @ 21C | M13: u | N13: 2.05e-05 | O13: lb-sec/ft2 @ 21C
B14: u | C14: =0.00001799 -> 1.799e-05 | D14: lb-sec/ft2 @ 27C | M14: u | N14: =0.00001799 -> 1.799e-05 | O14: lb-sec/ft2 @ 27C
B15: u | C15: 1.595e-05 | D15: lb-sec/ft2 @ 32C | M15: u | N15: 1.595e-05 | O15: lb-sec/ft2 @ 32C
C17: Temperature C | M17: Temperature C
B18: RPM | C18: 0 | D18: 4 | E18: 10 | F18: 16 | G18: 21 | H18: 27 | I18: 32 | L18: RPM | M18: 0 | N18: 4 | O18: 10 | P18: 16 | Q18: 20 | R18: 27 | S18: 32
B19: 10 | C19: =((550*$C$6*$C$5^5*B19^3*$C$7/(6.12*10^7))/($C$9*$C$8))^0.5 -> 3.031564895 | D19: =((550*$C$6*$C$5^5*B19^3*$C$7/(6.12*10^7))/($C$10*$C$8))^0.5 -> 3.26525222 | E19: =((550*$C$6*$C$5^5*B19^3*$C$7/(6.12*10^7))/($C$11*$C$8))^0.5 -> 3.547905883 | F19: =((550*$C$6*$C$5^5*B19^3*$C$7/(6.12*10^7))/($C$12*$C$8))^0.5 -> 3.820206027 | G19: =((550*$C$6*$C$5^5*B19^3*$C$7/(6.12*10^7))/($C$13*$C$8))^0.5 -> 4.098017657 | H19: =((550*$C$6*$C$5^5*B19^3*$C$7/(6.12*10^7))/($C$14*$C$8))^0.5 -> 4.374568024 | I19: =((550*$C$6*$C$5^5*B19^3*$C$7/(6.12*10^7))/($C$15*$C$8))^0.5 -> 4.645905932 | L19: 10 | M19: =((550*$N$6*$N$5^5*L19^3*$N$7/(6.12*10^7))/($N$9*$N$8))^0.5 -> 4.578840564 | N19: =((550*$N$6*$N$5^5*L19^3*$N$7/(6.12*10^7))/($N$10*$N$8))^0.5 -> 4.931799198 | O19: =((550*$N$6*$N$5^5*L19^3*$N$7/(6.12*10^7))/($N$11*$N$8))^0.5 -> 5.358716022 | P19: =((550*$N$6*$N$5^5*L19^3*$N$7/(6.12*10^7))/($N$12*$N$8))^0.5 -> 5.769995012 | Q19: =((550*$N$6*$N$5^5*L19^3*$N$7/(6.12*10^7))/($N$13*$N$8))^0.5 -> 6.189598486 | R19: =((550*$N$6*$N$5^5*L19^3*$N$7/(6.12*10^7))/($N$14*$N$8))^0.5 -> 6.607296963 | S19: =((550*$N$6*$N$5^5*L19^3*$N$7/(6.12*10^7))/($N$15*$N$8))^0.5 -> 7.017122601
B20: 30 | C20: =((550*$C$6*$C$5^5*B20^3*$C$7/(6.12*10^7))/($C$9*$C$8))^0.5 -> 15.75247327 | D20: =((550*$C$6*$C$5^5*B20^3*$C$7/(6.12*10^7))/($C$10*$C$8))^0.5 -> 16.96674823 | E20: =((550*$C$6*$C$5^5*B20^3*$C$7/(6.12*10^7))/($C$11*$C$8))^0.5 -> 18.43545975 | F20: =((550*$C$6*$C$5^5*B20^3*$C$7/(6.12*10^7))/($C$12*$C$8))^0.5 -> 19.8503728 | G20: =((550*$C$6*$C$5^5*B20^3*$C$7/(6.12*10^7))/($C$13*$C$8))^0.5 -> 21.29392438 | H20: =((550*$C$6*$C$5^5*B20^3*$C$7/(6.12*10^7))/($C$14*$C$8))^0.5 -> 22.73092224 | I20: =((550*$C$6*$C$5^5*B20^3*$C$7/(6.12*10^7))/($C$15*$C$8))^0.5 -> 24.14083536 | L20: 30 | M20: =((550*$N$6*$N$5^5*L20^3*$N$7/(6.12*10^7))/($N$9*$N$8))^0.5 -> 23.79235349 | N20: =((550*$N$6*$N$5^5*L20^3*$N$7/(6.12*10^7))/($N$10*$N$8))^0.5 -> 25.62638035 | O20: =((550*$N$6*$N$5^5*L20^3*$N$7/(6.12*10^7))/($N$11*$N$8))^0.5 -> 27.84470524 | P20: =((550*$N$6*$N$5^5*L20^3*$N$7/(6.12*10^7))/($N$12*$N$8))^0.5 -> 29.98177356 | Q20: =((550*$N$6*$N$5^5*L20^3*$N$7/(6.12*10^7))/($N$13*$N$8))^0.5 -> 32.16209717 | R20: =((550*$N$6*$N$5^5*L20^3*$N$7/(6.12*10^7))/($N$14*$N$8))^0.5 -> 34.33252212 | S20: =((550*$N$6*$N$5^5*L20^3*$N$7/(6.12*10^7))/($N$15*$N$8))^0.5 -> 36.4620386
B21: 50 | C21: =((550*$C$6*$C$5^5*B21^3*$C$7/(6.12*10^7))/($C$9*$C$8))^0.5 -> 33.89392592 | D21: =((550*$C$6*$C$5^5*B21^3*$C$7/(6.12*10^7))/($C$10*$C$8))^0.5 -> 36.50662963 | E21: =((550*$C$6*$C$5^5*B21^3*$C$7/(6.12*10^7))/($C$11*$C$8))^0.5 -> 39.66679366 | F21: =((550*$C$6*$C$5^5*B21^3*$C$7/(6.12*10^7))/($C$12*$C$8))^0.5 -> 42.71120182 | G21: =((550*$C$6*$C$5^5*B21^3*$C$7/(6.12*10^7))/($C$13*$C$8))^0.5 -> 45.81723027 | H21: =((550*$C$6*$C$5^5*B21^3*$C$7/(6.12*10^7))/($C$14*$C$8))^0.5 -> 48.90915737 | I21: =((550*$C$6*$C$5^5*B21^3*$C$7/(6.12*10^7))/($C$15*$C$8))^0.5 -> 51.9428074 | L21: 50 | M21: 51.1929938 | N21: 55.13919129 | O21: 59.91226649 | P21: 64.51050538 | Q21: 69.20181484 | R21: 73.87182578 | S21: 78.45381571
B22: 100 | C22: =((550*$C$6*$C$5^5*B22^3*$C$7/(6.12*10^7))/($C$9*$C$8))^0.5 -> 95.86649942 | D22: =((550*$C$6*$C$5^5*B22^3*$C$7/(6.12*10^7))/($C$10*$C$8))^0.5 -> 103.2563415 | E22: =((550*$C$6*$C$5^5*B22^3*$C$7/(6.12*10^7))/($C$11*$C$8))^0.5 -> 112.1946351 | F22: =((550*$C$6*$C$5^5*B22^3*$C$7/(6.12*10^7))/($C$12*$C$8))^0.5 -> 120.8055218 | G22: =((550*$C$6*$C$5^5*B22^3*$C$7/(6.12*10^7))/($C$13*$C$8))^0.5 -> 129.5906969 | H22: =((550*$C$6*$C$5^5*B22^3*$C$7/(6.12*10^7))/($C$14*$C$8))^0.5 -> 138.3359874 | I22: =((550*$C$6*$C$5^5*B22^3*$C$7/(6.12*10^7))/($C$15*$C$8))^0.5 -> 146.9164454 | L22: 100 | M22: 144.7956523 | N22: 155.9571843 | O22: 169.4574796 | P22: 182.4632633 | Q22: 195.7322902 | R22: 208.9410758 | S22: 221.9009004
B23: 300 | C23: =((550*$C$6*$C$5^5*B23^3*$C$7/(6.12*10^7))/($C$9*$C$8))^0.5 -> 498.1369432 | D23: =((550*$C$6*$C$5^5*B23^3*$C$7/(6.12*10^7))/($C$10*$C$8))^0.5 -> 536.535689 | E23: =((550*$C$6*$C$5^5*B23^3*$C$7/(6.12*10^7))/($C$11*$C$8))^0.5 -> 582.9804251 | F23: =((550*$C$6*$C$5^5*B23^3*$C$7/(6.12*10^7))/($C$12*$C$8))^0.5 -> 627.7239046 | G23: =((550*$C$6*$C$5^5*B23^3*$C$7/(6.12*10^7))/($C$13*$C$8))^0.5 -> 673.3730136 | H23: =((550*$C$6*$C$5^5*B23^3*$C$7/(6.12*10^7))/($C$14*$C$8))^0.5 -> 718.8148759 | I23: =((550*$C$6*$C$5^5*B23^3*$C$7/(6.12*10^7))/($C$15*$C$8))^0.5 -> 763.4002437 | L23: 300 | M23: 752.3802793 | N23: 810.3773009 | O23: 880.5268934 | P23: 948.1069274 | Q23: 1017.054814 | R23: 1085.689677 | S23: 1153.030901
G27: Water Viscosity Table
G28: 0 | H28: 3.746e-05
G29: 4.4 | H29: =0.00003229 -> 3.229e-05
G30: 10 | H30: 2.735e-05
B31: Temperature | C31: Trend Visc. | G31: 15.6 | H31: 2.359e-05
B32: =DataEntry!E6 -> 0 | C32: =1.3391*10^-8*B32^2-1.0818*10^-6*B32+3.7125*10^-5 -> 3.7125e-05 | G32: 21.1 | H32: 2.05e-05
G33: 26.7 | H33: =0.00001799 -> 1.799e-05
G34: 32.2 | H34: 1.595e-05

Sheet Neat chemical help
B1: Help Page for Determining How many uLs of neat chemical to add to jars
B3: Note: all cells are protected except the yellow cells for data entry.
B6: Product Strengh (lb/gal) | C6: 5.4
B7: Volume of Jar (L) | C7: 2
C10: Desired dosage (mg/L) Jar 1 | D10: Desired dosage (mg/L) Jar 2 | E10: Desired dosage (mg/L) Jar 3 | F10: Desired dosage (mg/L) Jar 4 | G10: Desired dosage (mg/L) Jar 5 | H10: Desired dosage (mg/L) Jar 6
C11: 10 | D11: 6 | E11: 30 | F11: 8 | G11: 9 | H11: 13
B12: uLs of chemical to add directly to jar | C12: =C11*8.345*$C$7/$C$6 -> 30.90740741 | D12: =D11*8.345*$C$7/$C$6 -> 18.54444444 | E12: 92.72222222 | F12: 24.72592593 | G12: 27.81666667 | H12: 40.17962963
B15: uLs of chemical to add directly to jar is calculated by the equation: | F15: uLs= | G15: Desired Dosage (mg/L) x 8.34 (lb/gal) x jar volume (L)
G16: Product strengh (lb/gal) x weight of water (1 mg/uL)

Sheet Calibrate Data
B1: Jar Test Calibration Parameters
B2: Chemicals added at Rapid Mix
B3: Parameter | C3: Chemical 1 | D3: Chemical 2 | E3: Chemical 3 | F3: Chemical 4
B4: Liquid (description) | C4: Aqua Hawk 457 (Hawkins product)
B5: Specific gravity | C5: 1.15 - 1.28
B6: Product strength, % | C6: 100
B7: Product strength, lb/gal
B8: Dry (description)
B9: Product purity, %
B10: Comments/Notes:
B15: Rapid Mix (collect data for appropriate configuration)
B16: Hydraulic Mixing Stage | C16: Segment 1 with channel | D16: Segment 2 with turbine mixer | E16: Segment 3 with pipes
B17: Basin or pipe dimensions | C17: 28 ft x 3.1 ft x 1.2 ft deep | D17: 18 ft x 7 ft x 5.6 ft deep | E17: 24 in dia x 130 ft
B18: Basin or pipe volume, ft3 | C18: =28*3.1*1.2 -> 104.16 | D18: =(18-6.5)*7*5.6 -> 450.8 | E18: =PI()*1^2*130 -> 408.407045
B19: Head loss across basin/pipe, ft
B20: Turbine Mixing Stage
B21: Blade diameter (tip to tip), ft | D21: 3.1 ft dia
B22: Description of blade1 | D22: 4 blade with 45 deg pitch
B23: Basin volume, ft3 | D23: =18*7*5.6 -> 705.6
B24: Turbine speed (actual and max), rpm | D24: operating @ 48 hz (60 max); 84 max rpm output; est operating at 67 rpm
B25: Comments/Notes (include length and diameter of pipe, # bends if used as rapid mix): Nozzle mixing system
B30: Jar Test Calibration Parameters (Page 2)
B31: Flocculator (collect data for appropriate configuration)
B32: Note: If using multiple stage flocculation, determine information for each stage.
B33: Turbine Mixing Stage | C33: 1st | D33: 2nd | E33: 3rd | F33: 4th
B34: Basin dimensions | C34: 20.6 ft x 20 ft x 12.5 ft deep
B35: Description of blade1 | C35: 4 blade with 45 deg pitch
B36: Blade diameter (tip to tip), ft | C36: 3 ft
B37: Basin volume, ft3 | C37: =20.6*20*12.5 -> 5150
B38: Turbine speed (actual and max), rpm | C38: 20 rpm actual
B39: Paddle Mixing Stage
B40: Area of paddles (L x W x No. paddles), ft2
B41: Diameter of paddles (tip to tip), ft
B42: Basin volume, ft3
B43: Paddle speed (actual and max), rpm
B44: Walking Beam Stage
B45: Area of paddles (L x W x No. paddles), ft2
B46: Paddle stroke length, ft
B47: Basin volume, ft3
B48: Paddle speed (actual and max), rpm
B49: Comments/Notes:
B52: Sedimentation (collect data for appropriate configuration)
B53: Without Tubes | C53: 118.16 ft X 41.33 ft x 12.25 ft deep per basin (2 basins)
B54: Surface area, ft2 | C54: =118.16*41.33*2 -> 9767.1056
B55: With Tubes
B56: Tube opening, inches
B57: Tube angle, degrees
B58: Tube depth, inches
B59: Area covered by tubes, ft2
B60: Comments/Notes:
B63: 1 See Turbine Mix Help worksheet

Sheet JarSettingsHELP
C2: Jar Settings HELP Screen
C3: Step 1 - Determine rapid mix time based on available rapid mix volume and flow rate through rapid mix. To determine the mixing
C4: energy (G value), use plant design info or refer to HELP buttons for type of mixing.
D5: Enter square jar volume (1 or 2) | E5: 2 | F5: Liters
D6: 1 or 2 Liter
C7: Stage | D7: 1st | E7: 2nd | F7: 3rd | L7: When G value exceeds G achievable by jar @ 300 rpm, equivalent G x t can be used to add mixing time.
C8: Rapid Mix Volume (ft3) | D8: 104 | E8: 451 | F8: 204
C9: Rapid Mix Flow Rate (MGD) | D9: 3.74 | E9: 3.74 | F9: =3.74/2 -> 1.87 | M9: Full Scale | N9: Jar @ 300 rpm
C10: Mix Time (sec) | D10: =IF(D9="","CALCULATION",D8*7.48*1440*60/D9/1000000) -> 17.9712 | E10: =IF(E9="","CALCULATION",E8*7.48*1440*60/E9/1000000) -> 77.9328 | F10: =IF(F9="","CALCULATION",F8*7.48*1440*60/F9/1000000) -> 70.5024 | L10: Time, sec | N10: =IF(N11="","CALC",M12/N11) -> CALC
C11: G Value (sec-1) | D11: 28.8 | E11: 392 | F11: 25.3 | L11: G, sec-1
C12: Jar RPM | D12: =IF(D11=0,"CALCULATION",IF($E$5=2,((D11^2*JarG!$C$32*JarG!$C$8*6.12*10^7)/(550*JarG!$C$6*diameter^5*JarG!$C$7))^(1/3),((D11^2*JarG!$C$32*JarG!$N$8*6.12*10^7)/(550*JarG!$C$6*diameter1^5*JarG!$C$7))^(1/3))) -> 44.72152886 | E12: =IF(E11=0,"CALCULATION",IF($E$5=2,((E11^2*JarG!$C$32*JarG!$C$8*6.12*10^7)/(550*JarG!$C$6*diameter^5*JarG!$C$7))^(1/3),((E11^2*JarG!$C$32*JarG!$N$8*6.12*10^7)/(550*JarG!$C$6*diameter1^5*JarG!$C$7))^(1/3))) -> 254.944528 | F12: =IF(F11=0,"CALCULATION",IF($E$5=2,((F11^2*JarG!$C$32*JarG!$C$8*6.12*10^7)/(550*JarG!$C$6*diameter^5*JarG!$C$7))^(1/3),((F11^2*JarG!$C$32*JarG!$N$8*6.12*10^7)/(550*JarG!$C$6*diameter1^5*JarG!$C$7))^(1/3))) -> 41.02059898 | L12: G x t | M12: =IF(M10="calculation","CALC",M10*M11) -> 0
C14: Step 2 - Determine flocculation time per stage based on available flocculation volume and flow rate through the flocculation stage.
C15: To determine mixing energy (G value) for each stage, use plant design info or refer to HELP buttons for type of mixing.
C17: Table 3 | L17: Additional transition segments
C18: STAGE | D18: 1st | E18: 2nd | F18: 3rd | G18: 4th | H18: Hydraulic & Turbine Mix buttons
C19: Volume (ft3) | D19: =5150*4 -> 20600 | H19: may also apply to flocculation
C20: Flow Rate (MGD) | D20: 3.74
C21: Floc Time (min) | D21: =IF(D20="","CALCULATION",JarSettingsHELP!D19*7.48*1440/D20/1000000) -> 59.328 | E21: =IF(E20="","CALCULATION",JarSettingsHELP!E19*7.48*1440/E20/1000000) -> CALCULATION | F21: =IF(F20="","CALCULATION",JarSettingsHELP!F19*7.48*1440/F20/1000000) -> CALCULATION | G21: =IF(G20="","CALCULATION",JarSettingsHELP!G19*7.48*1440/G20/1000000) -> CALCULATION | L21: =IF(L20="","CALCULATION",JarSettingsHELP!L19*7.48*1440/L20/1000000) -> CALCULATION | M21: =IF(M20="","CALCULATION",JarSettingsHELP!M19*7.48*1440/M20/1000000) -> CALCULATION
C22: G Value (sec-1) | D22: 18
C23: Jar RPM | D23: =IF(D22=0,"CALCULATION",IF($E$5=2,((D22^2*JarG!$C$32*JarG!$C$8*6.12*10^7)/(550*JarG!$C$6*diameter^5*JarG!$C$7))^(1/3),((D22^2*JarG!$C$32*JarG!$N$8*6.12*10^7)/(550*JarG!$C$6*diameter1^5*JarG!$C$7))^(1/3))) -> 32.69163592 | E23: =IF(E22=0,"CALCULATION",IF($E$5=2,((E22^2*JarG!$C$32*JarG!$C$8*6.12*10^7)/(550*JarG!$C$6*diameter^5*JarG!$C$7))^(1/3),((E22^2*JarG!$C$32*JarG!$N$8*6.12*10^7)/(550*JarG!$C$6*diameter1^5*JarG!$C$7))^(1/3))) -> CALCULATION | F23: =IF(F22=0,"CALCULATION",IF($E$5=2,((F22^2*JarG!$C$32*JarG!$C$8*6.12*10^7)/(550*JarG!$C$6*diameter^5*JarG!$C$7))^(1/3),((F22^2*JarG!$C$32*JarG!$N$8*6.12*10^7)/(550*JarG!$C$6*diameter1^5*JarG!$C$7))^(1/3))) -> CALCULATION | G23: =IF(G22=0,"CALCULATION",IF($E$5=2,((G22^2*JarG!$C$32*JarG!$C$8*6.12*10^7)/(550*JarG!$C$6*diameter^5*JarG!$C$7))^(1/3),((G22^2*JarG!$C$32*JarG!$N$8*6.12*10^7)/(550*JarG!$C$6*diameter1^5*JarG!$C$7))^(1/3))) -> CALCULATION | L23: =IF(L22=0,"CALCULATION",IF($E$5=2,((L22^2*JarG!$C$32*JarG!$C$8*6.12*10^7)/(550*JarG!$C$6*diameter^5*JarG!$C$7))^(1/3),((L22^2*JarG!$C$32*JarG!$N$8*6.12*10^7)/(550*JarG!$C$6*diameter1^5*JarG!$C$7))^(1/3))) -> CALCULATION | M23: =IF(M22=0,"CALCULATION",IF($E$5=2,((M22^2*JarG!$C$32*JarG!$C$8*6.12*10^7)/(550*JarG!$C$6*diameter^5*JarG!$C$7))^(1/3),((M22^2*JarG!$C$32*JarG!$N$8*6.12*10^7)/(550*JarG!$C$6*diameter1^5*JarG!$C$7))^(1/3))) -> CALCULATION
C25: Step 3 - Determine the jar settling time based on the sed basin surface overflow rate (rise rate) and corresponding particle settling
C26: velocity. If the sed basins have tube settlers installed, use input box on the right.
G28: Conventional Basin with Tube or Plate Settlers | S28: Plate opening (typ. 5 cm)
C29: Conventional Basin | G29: Tube or Plate Opening (inch)
C30: Flow Rate (MGD) | E30: 3.74 | G30: Tube or Plate Angle (degrees) | L30: =IF(I33=0,,I32*1000000/1440/7.48/I33) -> 0 | M30: rise rate (ft/min)
C31: Surface Area (ft2) | E31: 9767 | G31: Tube or Plate Depth (inch) | L31: =IF(I30=0,,L30/SIN((I30*PI()/180))) -> 0 | M31: tube velocity (ft/min)
C32: Settling velocity (cm/min) | E32: =IF(E31=0,"CALCULATION",(IF(E30="",,E30*1000000/1440/7.48/E31*12*2.54))) -> 1.083580765 | G32: Flow Rate (MGD) | L32: =IF(I30=0,,I31/SIN((I30*PI()/180))/12) -> 0 | M32: tube path length (ft) | S32: Plate angle (typ. 60 degrees)
C33: Floc to Sed Transition Time - (min) | E33: 0.5 | G33: Surface Area (ft2) | L33: =IF(L30=0,,L32/L31) -> 0 | M33: tube dt (min)
C34: Jar Settling Time * (min) | E34: =IF(E32="CALCULATION","CALCULATION",10/E32+E33) -> 9.728661417 | G34: Settling Velocity (cm/min) | I34: =IF(L33=0,"CALCULATION",L34/L33) -> CALCULATION | L34: =I29*2.54/COS(I30*PI()/180) -> 0 | M34: tube settling distance (cm) | Q34: plate settling distance = plate opening / cos plate angle
C35: * Based on 10 cm sample depth in jar | G35: Floc to Sed Transition Time - (min)
G36: Sample Time (min) | I36: =IF(I34="CALCULATION","CALCULATION",10/I34+I35) -> CALCULATION
D91: * Estimated based on data provided by MCR jar design (formerly EC Engineering)
D92: http://www.mcrpt.com

Sheet HydraulicMixHELP
B1: Calculation of Velocity Gradient (G) for Hydraulic Mixing
B3: Parameters | C3: Input | D3: Input | E3: Input | F3: Units
B4: Description | C4: Channel RM | D4: Pipe RM
B5: Basin/Pipe Volume | C5: 104 | D5: 204 | F5: ft3
B6: Flow Rate | C6: 2.3 | D6: =2.3/2 -> 1.15 | F6: MGD
B7: Head loss (hL) | C7: 0.007 | D7: 0.0212 | F7: ft | H7: Note: Headloss through piping segments can be estimated
B8: Weight of Fluid (w) | C8: 62.4 | D8: 62.4 | E8: 62.4 | F8: lb/ft3
B9: Water Temperature | C9: =DataEntry!E6 -> 0 | D9: =C9 -> 0 | E9: =C9 -> 0 | F9: C
B10: Dynamic viscosity (u) | C10: =1.3391*10^-8*C9^2-1.0818*10^-6*C9+3.7125*10^-5 -> 3.7125e-05 | D10: =C10 -> 3.7125e-05 | E10: =C10 -> 3.7125e-05 | F10: lb-sec/ft2
B11: Velocity Gradient (G) | C11: =IF(C6="",,((C8*C7)/(C10*(C5*7.48/(C6*10^6)*1440*60)))^0.5) -> 20.06539261 | D11: =IF(D6="",,((D8*D7)/(D10*(D5*7.48/(D6*10^6)*1440*60)))^0.5) -> 17.63003443 | E11: =IF(E6="",,((E8*E7)/(E10*(E5*7.48/(E6*10^6)*1440*60)))^0.5) -> 0 | F11: sec-1 | H11: by paging down and using the Hazen-Williams input box.
B13: Note: Input current water temperature in the DataEntry Screen.
B14: The velocity gradient calculation requires a current value to be accurate.
B15: Transfer the velocity gradient value to the JarSettingsHELP worksheet.
B17: The Hazen-Williams equation for determination of head loss in pressure pipe (should be used only for turbulent flow).
B19: Input
B20: Flow (MGD) = | C20: =3.74/2 -> 1.87
B21: Pipe Diameter (inches) = | C21: 24
B22: Length (feet) = | C22: 130
B23: C = | C23: 120
B24: Calculations
B25: Q (gpm) = | C25: =C20*10^6/1440 -> 1298.611111
C26: =C25*0.002228 -> 2.893305556 | I26: Velocity Head | J26: ft | K26: 0.006114428954
B27: A (sf) = | C27: =3.14*(C21/12/2)^2 -> 3.14
B28: V (fps) = | C28: =(C26)/C27 -> 0.9214348903
B29: S = | C29: =(C28/(1.318*C23*(C21/12/2/2)^0.63))^1.852 -> 0.0001631891526
B30: Head loss - friction (ft) = | C30: =C29*C22 -> 0.02121458984
B31: Pressure head (psi) = | C31: =C30*0.4335 -> 0.009196524698
B32: Should minor losses be considered? | C32: =IF((C21/12)*500>C22,"YES","NO") -> YES
B34: V^2/2g = | C34: =(C28^2)/(32.2*2) -> 0.01318388598
B35: K factors for minor losses | D35: HL (ft)
B36: 90o bend | C36: 0.3 | D36: =C36*C34 -> 0.003955165794
B37: Squared edged inlet | C37: 0.5 | D37: =C37*C34 -> 0.00659194299
B38: Inward projecting pipe | C38: 1 | D38: =C38*C34 -> 0.01318388598
B40: Hazen-Williams Coefficient
B41: Water Supply and Pollution Control, 4th ed., Viessman and Hammer, 1985
B42: Pipe Material | C42: C
B43: New cast iron | C43: 130
B44: 5-yr-old iron | C44: 120
B45: 20-yr-old cast iron | C45: 100
B46: Average concrete | C46: 130
B47: New welded steel | C47: 120
B48: Asbestos cement | C48: 140
B49: Plastic | C49: 150
B51: The Manning equation for determination of head loss in open channel flow (should be used only for turbulent flow).
B52: ISCO Open Channel Flow Measurement Handbook p. 67
B53: Parameters | C53: Input | D53: Input | E53: Input
B54: Description | C54: Infuent Channel
B55: Width, ft | C55: 3.1
B56: Height, ft | C56: 1.2
B57: Length, ft | C57: 28
B58: Channel area, ft^2 | C58: =C55*C56 -> 3.72 | D58: =D55*D56 -> 0 | E58: =E55*E56 -> 0
B59: Channel wettted perimeter (3 sides) | C59: =2*C56+C55 -> 5.5 | D59: =2*D56+D55 -> 0 | E59: =2*E56+E55 -> 0
B60: Channel hydraulic diameter, ft | C60: =C58/C59 -> 0.6763636364 | D60: =D58/D59 ->  | E60: =E58/E59 -> 
B61: Flow rate, MGD | C61: =2600*1440/10^6 -> 3.744
B62: Flow rate, ft^3/sec | C62: =C61*10^6/7.48/1440/60 -> 5.793226381 | D62: =D61*10^6/7.48/1440/60 -> 0 | E62: =E61*10^6/7.48/1440/60 -> 0
B63: Viscosity of water - µ, lb-sec/ft^2 | C63: =C10 -> 3.7125e-05 | D63: =D10 -> 3.7125e-05 | E63: =E10 -> 3.7125e-05
B64: N factor | C64: 0.012
B65: Channel hydraulic slope | C65: =((C62*C64)/(1.49*C58*C60^(2/3)))^2 -> 0.0002649545658 | D65: =((D62*D64)/(1.49*D58*D60^(2/3)))^2 ->  | E65: =((E62*E64)/(1.49*E58*E60^(2/3)))^2 -> 
B66: Channel friction loss due to flow, ft | C66: =IF(C57="","CALCULATION",C65*C57) -> 0.007418727841 | D66: =IF(D57="","CALCULATION",D65*D57) -> CALCULATION | E66: =IF(E57="","CALCULATION",E65*E57) -> CALCULATION
B67: Minor loss
B68: Opening Height, ft
B69: Opening Width, ft
B70: Flow rate thru opening, MGD
B71: Flow rate thru opening, ft^3/sec | C71: =C70*10^6/7.48/1440/60 -> 0 | D71: =D70*10^6/7.48/1440/60 -> 0 | E71: =E70*10^6/7.48/1440/60 -> 0
B72: Velocity, ft/sec | C72: =C71/(C68*C69) ->  | D72: =D71/(D68*D69) ->  | E72: =E71/(E68*E69) -> 
B73: Minor loss due to opening, ft | C73: =IF(C68="","CALCULATION",(C71/(0.61*C68*C69))^2/64.4) -> CALCULATION | D73: =IF(D68="","CALCULATION",(D71/(0.61*D68*D69))^2/64.4) -> CALCULATION | E73: =IF(E68="","CALCULATION",(E71/(0.61*E68*E69))^2/64.4) -> CALCULATION
B74: Minor loss
B75: Opening Height, ft
B76: Opening Width, ft
B77: Flow rate thru opening, MGD
B78: Flow rate thru opening, ft^3/sec | C78: =C77*10^6/7.48/1440/60 -> 0 | D78: =D77*10^6/7.48/1440/60 -> 0 | E78: =E77*10^6/7.48/1440/60 -> 0
B79: Velocity, ft/sec | C79: =C78/(C75*C76) ->  | D79: =D78/(D75*D76) ->  | E79: =E78/(E75*E76) -> 
B80: Minor loss due to opening, ft | C80: =IF(C75="","CALCULATION",(C78/(0.61*C75*C76))^2/64.4) -> CALCULATION | D80: =IF(D75="","CALCULATION",(D78/(0.61*D75*D76))^2/64.4) -> CALCULATION | E80: =IF(E75="","CALCULATION",(E78/(0.61*E75*E76))^2/64.4) -> CALCULATION
B81: Total losses | C81: =C66+C73+C80 ->  | D81: =D66+D73+D80 ->  | E81: =E66+E73+E80 -> 

Sheet NozzleMixHELP
B1: Calculation of Velocity Gradient (G) for Pump Injection thru Nozzle
B3: Parameters | C3: Input | E3: Units
B4: Description
B5: Coefficient of discharge | F5: 0.85 | G5: Obtained from Tacoma jar test speadsheet
B6: Area of nozzle(s) | E6: ft2
B7: Flow rate through nozzle(s) | E7: gpm
B8: Diameter of pipeline or area of flow | E8: ft2
B9: Jet velocity | E9: ft/sec | F9: =F8*72 -> 0 | G9: ft^2 area for 72 nozzles
B10: Water horsepower | E10: Hp
B11: Mixing zone length | E11: ft | F11: See site specific calculation below
B12: Mixing volume | C12: =C8*C11 -> 0 | D12: =D8*D11 -> 0 | E12: ft3
B13: Weight of Fluid (w) | C13: 62.4 | D13: 62.4 | E13: lb/ft3
B14: Water temperature | C14: =DataEntry!E6 -> 0 | D14: =DataEntry!E6 -> 0 | E14: C
B15: Dynamic viscosity (u) | C15: =1.3391*10^-8*C14^2-1.0818*10^-6*C14+3.7125*10^-5 -> 3.7125e-05 | D15: =1.3391*10^-8*D14^2-1.0818*10^-6*D14+3.7125*10^-5 -> 3.7125e-05 | E15: lb-sec/ft2
B16: Velocity gradient (G) | C16: =IF(C6="",,(C10*550/C15/C12)^0.5) -> 0 | D16: =IF(D6="",,(D10*550/D15/D12)^0.5) -> 0 | E16: sec-1
B18: Note: Input current water temperature in the DataEntry Screen.
B19: The velocity gradient calculation requires a current value to be accurate.
B20: Transfer the velocity gradient value to the JarSettingsHELP worksheet. | E20: Source: Tacoma WTP Jar Testing Spreadsheet (open channel nozzle array example)
E21: Time for Flash Mixing
E22: The time for flash mixing is calculated based on the area in which mixing occurs. Mixing occurs across the channel for the length x, which can be found by: Time to Flash mix is found by: Where v = velocity of flow in channel Flash mix dimensions can be found on drawing 5M-7
K24: Plan View
K36: Mixing zone x = | M36: 2.309 | N36: feet

Sheet TurbineMixHELP
B1: Calculation of Velocity Gradient (G) for Vertical Turbine Mixers
B3: Parameters | D3: Input | E3: Units | F3: Note:
B4: Description | D4: Rapid Mix Basin | F4: Input current water temperature in the DataEntry screen - the
B5: Blade Diameter (D) | D5: 3.1 | E5: ft | F5: velocity gradient calculation requires a current value to be accurate.
B6: Impeller Number (Np) | D6: 1.6 | E6: See Below
B7: Volume (V) | D7: 451 | E7: ft3
B8: Weight of Fluid (w) | D8: 62.4 | E8: lb/ft3
B9: Acceleration of Gravity | D9: 32.2 | E9: ft/sec2
B10: Water Temperature | D10: =DataEntry!E6 -> 0 | E10: C
B11: Dynamic viscosity (u) | D11: =1.3391*10^-8*D10^2-1.0818*10^-6*D10+3.7125*10^-5 -> 3.7125e-05 | E11: lb-sec/ft2
B13: Controller Setting (%) | D13: RPM (R) | E13: ="G @ "&D10&" C" -> G @ 0 C
B14: Min | C14: 0 | D14: 0 | E14: =IF($D$7="","",(($D$6*($D$8/$D$9)*$D$5^5*(D14/60)^3)/($D$11*$D$7))^0.5) -> 0
C15: =IF($C24=0,"",(($C$24-$C$14)/10+C14)) -> 0.1 | D15: =IF($D24=0,"",(($D$24-$D$14)/10+D14)) -> 8.4 | E15: =IF($D$7="","",(($D$6*($D$8/$D$9)*$D$5^5*(D15/60)^3)/($D$11*$D$7))^0.5) -> 12.06143932
C16: =IF($C24=0,"",(($C$24-$C$14)/10+C15)) -> 0.2 | D16: =IF($D24=0,"",(($D$24-$D$14)/10+D15)) -> 16.8 | E16: 34.11490214
C17: =IF($C24=0,"",(($C$24-$C$14)/10+C16)) -> 0.3 | D17: =IF($D24=0,"",(($D$24-$D$14)/10+D16)) -> 25.2 | E17: 62.67307715
C18: =IF($C24=0,"",(($C$24-$C$14)/10+C17)) -> 0.4 | D18: =IF($D24=0,"",(($D$24-$D$14)/10+D17)) -> 33.6 | E18: 96.49151457
C19: =IF($C24=0,"",(($C$24-$C$14)/10+C18)) -> 0.5 | D19: =IF($D24=0,"",(($D$24-$D$14)/10+D18)) -> 42 | E19: 134.8509911
C20: =IF($C24=0,"",(($C$24-$C$14)/10+C19)) -> 0.6 | D20: =IF($D24=0,"",(($D$24-$D$14)/10+D19)) -> 50.4 | E20: 177.2662314
C21: =IF($C24=0,"",(($C$24-$C$14)/10+C20)) -> 0.7 | D21: =IF($D24=0,"",(($D$24-$D$14)/10+D20)) -> 58.8 | E21: 223.3809823
C22: =IF($C24=0,"",(($C$24-$C$14)/10+C21)) -> 0.8 | D22: =IF($D24=0,"",(($D$24-$D$14)/10+D21)) -> 67.2 | E22: 272.9192171
C23: =IF($C24=0,"",(($C$24-$C$14)/10+C22)) -> 0.9 | D23: =IF($D24=0,"",(($D$24-$D$14)/10+D22)) -> 75.6 | E23: 325.6588617
B24: Max | C24: 1 | D24: 84 | E24: 381.4162011
B25: Actual | C25: 0.8 | D25: =IF(OR(C25="",D24=""),"",IF(C25=C14,D14,(D24-D14)/((C24-C14)/(C25-C14))+D14)) -> 67.2 | E25: 272.9192171
G27: NOTE:
B28: Source of information, equations, and images: Mixing in Coagulation and Flocculation, AWWARF 1991 & | G28: You will need to enter the data for each vertical turbine mixer
B29: Water Works Engineering, Qasim & Zhu, Prentice Hall PTR 2000 | G29: and then transfer the resulting G value to the appropriate box
G30: in the JarSettingsHELP screen. For example, if the plant has a
B31: Impeller Power Number (Np) | G31: two-stage mixer, the table will need to be filled out for each stage.
B32: Propeller Type | E32: Np | G32: Page down for additional turbine mixer data entry tables.
B33: Flat Blade Turbine (radial flow) | E33: 2.6 - 3.6
B34: Disk Turbine (radial flow) | E34: 5.1 - 6.2
B35: Curved Blade Turbine (radial flow) | E35: 2.5
B36: 45o Pitched Blade Turbine (axial flow) | E36: 1.36 - 1.94
B37: 4-Blade Hydrofoil | E37: 0.4
B38: 3-Blade Hydrofoil | E38: 0.3
B39: Propeller (axial flow) | E39: 0.3 - 0.7
B59: Flat blade turbine
B64: Parameters | D64: Input | E64: Units
B65: Description | D65: Flocculation
B66: Blade Diameter (D) | D66: 3 | E66: ft
B67: Impeller Number (Np) | D67: 1.6 | E67: See Below
B68: Volume (V) | D68: 5150 | E68: ft3
B69: Weight of Fluid (w) | D69: 62.4 | E69: lb/ft3
B70: Acceleration of Gravity | D70: 32.2 | E70: ft/sec2
B71: Water Temperature | D71: =DataEntry!E6 -> 0 | E71: C
B72: Dynamic viscosity (u) | D72: =1.3391*10^-8*D71^2-1.0818*10^-6*D71+3.7125*10^-5 -> 3.7125e-05 | E72: lb-sec/ft2
B74: Controller Setting (%) | D74: RPM (R) | E74: ="G @ "&D71&" C" -> G @ 0 C
B75: Min | C75: 0 | D75: 0 | E75: =IF($D$68="","",(($D$67*($D$69/$D$70)*$D$66^5*(D75/60)^3)/($D$72*$D$68))^0.5) -> 0
C76: =IF($C85=0,"",(($C$24-$C$14)/10+C75)) -> 0.1 | D76: =IF($D$85=0,"",(($D$85-$D$75)/10+D75)) -> 5.6 | E76: =IF($D$68="","",(($D$67*($D$69/$D$70)*$D$66^5*(D76/60)^3)/($D$72*$D$68))^0.5) -> 1.789970223
C77: =IF($C85=0,"",(($C$24-$C$14)/10+C76)) -> 0.2 | D77: =IF($D$85=0,"",(($D$85-$D$75)/10+D76)) -> 11.2 | E77: 5.062800332
C78: =IF($C85=0,"",(($C$24-$C$14)/10+C77)) -> 0.3 | D78: 16.8 | E78: 9.300958111
C79: =IF($C85=0,"",(($C$24-$C$14)/10+C78)) -> 0.4 | D79: 22.4 | E79: 14.31976178
C80: =IF($C85=0,"",(($C$24-$C$14)/10+C79)) -> 0.5 | D80: 28 | E80: 20.01247548
C81: =IF($C85=0,"",(($C$24-$C$14)/10+C80)) -> 0.6 | D81: 33.6 | E81: 26.30708221
C82: =IF($C85=0,"",(($C$24-$C$14)/10+C81)) -> 0.7 | D82: 39.2 | E82: 33.15071245
C83: =IF($C85=0,"",(($C$24-$C$14)/10+C82)) -> 0.8 | D83: 44.8 | E83: 40.50240265
C84: =IF($C85=0,"",(($C$24-$C$14)/10+C83)) -> 0.9 | D84: 50.4 | E84: 48.32919602
B85: Max | C85: 1 | D85: 56 | E85: 56.60382849
B86: Actual | C86: 0.36 | D86: =IF(OR(C86="",D85=""),"",IF(C86=C75,D75,(D85-D75)/((C85-C75)/(C86-C75))+D75)) -> 20.16 | E86: 12.22642695
B89: Parameters | D89: Input | E89: Units
B90: Description
B91: Blade Diameter (D) | E91: ft
B92: Impeller Number (Np) | E92: See Below
B93: Volume (V) | E93: ft3
B94: Weight of Fluid (w) | D94: 62.4 | E94: lb/ft3
B95: Acceleration of Gravity | D95: 32.2 | E95: ft/sec2
B96: Water Temperature | D96: =DataEntry!E6 -> 0 | E96: C
B97: Dynamic viscosity (u) | D97: =1.3391*10^-8*D96^2-1.0818*10^-6*D96+3.7125*10^-5 -> 3.7125e-05 | E97: lb-sec/ft2
B99: Controller Setting (%) | D99: RPM (R) | E99: ="G @ "&D96&" C" -> G @ 0 C
B100: Min | C100: 0 | D100: 0 | E100: =IF($D$93="","",(($D$92*($D$94/$D$95)*$D$91^5*(D100/60)^3)/($D$97*$D$93))^0.5) -> 
C101: =IF($C110=0,"",(($C$24-$C$14)/10+C100)) -> 0.1 | D101: =IF($D$110=0,"",(($D$110-$D$100)/10+D100)) ->  | E101: =IF($D$93="","",(($D$92*($D$94/$D$95)*$D$91^5*(D101/60)^3)/($D$97*$D$93))^0.5) -> 
C102: =IF($C110=0,"",(($C$24-$C$14)/10+C101)) -> 0.2 | D102: =IF($D$110=0,"",(($D$110-$D$100)/10+D101)) -> 
C103: =IF($C110=0,"",(($C$24-$C$14)/10+C102)) -> 0.3
C104: =IF($C110=0,"",(($C$24-$C$14)/10+C103)) -> 0.4
C105: =IF($C110=0,"",(($C$24-$C$14)/10+C104)) -> 0.5
C106: =IF($C110=0,"",(($C$24-$C$14)/10+C105)) -> 0.6
C107: =IF($C110=0,"",(($C$24-$C$14)/10+C106)) -> 0.7
C108: =IF($C110=0,"",(($C$24-$C$14)/10+C107)) -> 0.8
C109: =IF($C110=0,"",(($C$24-$C$14)/10+C108)) -> 0.9
B110: Max | C110: 1
B111: Actual | D111: =IF(OR(C111="",D110=""),"",IF(C111=C100,D100,(D110-D100)/((C110-C100)/(C111-C100))+D100)) -> 

Sheet PaddleMixHELP
B1: Calculation of Velocity Gradient (G) for Paddle-Type Mixers
C3: Parameters | D3: Input | E3: Units | F3: NOTE:
C4: Description | D4: 1st stage flocculation | F4: Input current water temperature in the DataEntry Screen - the
C5: Coefficient of Drag (Cd) | D5: 1.8 | F5: velocity gradient calculation requires a current value to be accurate.
C6: Area of Paddles (A) | E6: ft2
C7: Diameter of Flocculator (d) | E7: ft
C8: Volume of basin (V) | E8: ft3
C9: Water Temperature | D9: =DataEntry!E6 -> 0 | E9: C
C10: u | D10: =1.3391*10^-8*D9^2-1.0818*10^-6*D9+3.7125*10^-5 -> 3.7125e-05 | E10: lb-sec/ft2 @ 40F
B12: Controller Setting (%) | D12: RPM (R) | E12: ="G @ "&D9&" C" -> G @ 0 C
B13: Min | C13: 0 | D13: 0 | E13: =IF($D8="","",(($D5*$D6*(0.75*PI()*$D7*D13/60)^3)/($D10*$D8))^0.5) -> 
C14: =IF($C$23="","",(($C$23-$C$13)/10+C13)) -> 0.1 | D14: =IF($D$23="","",(($D$23-$D$13)/10+D13)) ->  | E14: =IF($D$8="","",(($D$5*$D$6*(0.75*PI()*$D$7*D14/60)^3)/($D$10*$D$8))^0.5) -> 
C15: 0.2
C16: 0.3
C17: 0.4
C18: 0.5
C19: 0.6
C20: 0.7
C21: 0.8
C22: 0.9
B23: Max | C23: 1
B24: Actual | D24: =IF(OR(C24="",D23=""),"",IF(C24=C13,D13,(D23-D13)/((C23-C13)/(C24-C13))+D13)) -> 
E26: Source: Mixing in Coagulation and Flocculation, AWWARF 1991
B28: NOTE:
B29: You will need to enter the data for each paddle-type mixer
B30: and then tranfer the resulting G value to the appropriate
B31: box on the JarSettingsHELP screen. For example,
B32: if the plant has three-stage mixer, the table will
B33: need to be filled out once for each stage.
B34: Page down for additional paddle-type mixer data entry tables.
G49: Typical horizontal paddle-type flocculator
C52: Parameters | D52: Input | E52: Units
C53: Description | D53: 2nd stage flocculation
C54: Coefficient of Drag (Cd) | D54: 1.8
C55: Area of Paddles (A) | E55: ft2
C56: Diameter of Flocculator (d) | E56: ft
C57: Volume of basin (V) | E57: ft3
C58: Water Temperature | D58: =DataEntry!E55 -> 0 | E58: C
C59: u | D59: =1.3391*10^-8*D58^2-1.0818*10^-6*D58+3.7125*10^-5 -> 3.7125e-05 | E59: lb-sec/ft2 @ 40F
B61: Controller Setting (%) | D61: RPM (R) | E61: ="G @ "&D58&" C" -> G @ 0 C
B62: Min | C62: 0 | D62: 0 | E62: =IF($D57="","",(($D54*$D55*(0.75*PI()*$D56*D62/60)^3)/($D59*$D57))^0.5) -> 
C63: =IF($C$23="","",(($C$23-$C$13)/10+C62)) -> 0.1 | D63: =IF($D$72="","",(($D$72-$D$62)/10+D62)) ->  | E63: =IF($D$57="","",(($D$54*$D$55*(0.75*PI()*$D$56*D63/60)^3)/($D$59*$D$57))^0.5) -> 
C64: 0.2 | D64: =IF($D$72="","",(($D$72-$D$62)/10+D63)) -> 
C65: 0.3
C66: 0.4
C67: 0.5
C68: 0.6
C69: 0.7
C70: 0.8
C71: 0.9
B72: Max | C72: 1
B73: Actual | D73: =IF(OR(C73="",D72=""),"",IF(C73=C62,D62,(D72-D62)/((C72-C62)/(C73-C62))+D62)) -> 
C76: Parameters | D76: Input | E76: Units
C77: Description | D77: 3rd stage flocculation
C78: Coefficient of Drag (Cd) | D78: 1.8
C79: Area of Paddles (A) | E79: ft2
C80: Diameter of Flocculator (d) | E80: ft
C81: Volume of basin (V) | E81: ft3
C82: Water Temperature | D82: =DataEntry!E79 -> 0 | E82: C
C83: u | D83: =1.3391*10^-8*D82^2-1.0818*10^-6*D82+3.7125*10^-5 -> 3.7125e-05 | E83: lb-sec/ft2 @ 40F
B85: Controller Setting (%) | D85: RPM (R) | E85: ="G @ "&D82&" C" -> G @ 0 C
B86: Min | C86: 0 | D86: 0 | E86: =IF($D$81="","",(($D$78*$D$79*(0.75*PI()*$D$80*D86/60)^3)/($D$83*$D$81))^0.5) -> 
C87: =IF($C$23="","",(($C$23-$C$13)/10+C86)) -> 0.1 | D87: =IF($D$96="","",(($D$96-$D$86)/10+D86)) ->  | E87: =IF($D$81="","",(($D$78*$D$79*(0.75*PI()*$D$80*D87/60)^3)/($D$83*$D$81))^0.5) -> 
C88: 0.2 | D88: =IF($D$96="","",(($D$96-$D$86)/10+D87)) -> 
C89: 0.3
C90: 0.4
C91: 0.5
C92: 0.6
C93: 0.7
C94: 0.8
C95: 0.9
B96: Max | C96: 1
B97: Actual | D97: =IF(OR(C97="",D96=""),"",IF(C97=C86,D86,(D96-D86)/((C96-C86)/(C97-C86))+D86)) -> 

Sheet BeamMixHELP
C1: Calculation of Velocity Gradient (G) for Walking Beam Mixers
C4: Parameters | D4: Input | E4: Units | F4: NOTE:
C5: Coefficient of Drag (Cd) | D5: 3 | F5: Input current water temperature in the DataEntry screen - the
C6: Area of Paddles (A) | E6: ft2 | F6: velocity gradient calculation requires a current value to be accurate.
C7: Paddle Stroke Length (L) | E7: ft
C8: Volume of basin (V) | E8: ft3
C9: Water Temperature | D9: =DataEntry!E6 -> 0 | E9: C
C10: u | D10: =1.3391*10^-8*D9^2-1.0818*10^-6*D9+3.7125*10^-5 -> 3.7125e-05 | E10: lb-sec/ft2 @ 40F
C12: Controller Setting (%) | D12: RPM (R) | E12: ="G @ "&D9&" C" -> G @ 0 C
B13: Min | C13: 0 | E13: =IF($D$8="","",((12.74*$D$5*$D$6*$D$7^3*(D13/60)^3)/($D$10*$D$8))^0.5) -> 
C14: =IF($C23=0,"",(($C$23-$C$13)/10+C13)) -> 0.1 | D14: =IF($D23=0,"",(($D$23-$D$13)/10+D13)) ->  | E14: =IF($D$8="","",((12.74*$D$5*$D$6*$D$7^3*(D14/60)^3)/($D$10*$D$8))^0.5) -> 
C15: =IF($C23=0,"",(($C$23-$C$13)/10+C14)) -> 0.2 | D15: =IF($D23=0,"",(($D$23-$D$13)/10+D14)) -> 
C16: =IF($C23=0,"",(($C$23-$C$13)/10+C15)) -> 0.3 | D16: =IF($D23=0,"",(($D$23-$D$13)/10+D15)) -> 
C17: =IF($C23=0,"",(($C$23-$C$13)/10+C16)) -> 0.4 | D17: =IF($D23=0,"",(($D$23-$D$13)/10+D16)) -> 
C18: =IF($C23=0,"",(($C$23-$C$13)/10+C17)) -> 0.5 | D18: =IF($D23=0,"",(($D$23-$D$13)/10+D17)) -> 
C19: =IF($C23=0,"",(($C$23-$C$13)/10+C18)) -> 0.6 | D19: =IF($D23=0,"",(($D$23-$D$13)/10+D18)) -> 
C20: =IF($C23=0,"",(($C$23-$C$13)/10+C19)) -> 0.7 | D20: =IF($D23=0,"",(($D$23-$D$13)/10+D19)) -> 
C21: =IF($C23=0,"",(($C$23-$C$13)/10+C20)) -> 0.8 | D21: =IF($D23=0,"",(($D$23-$D$13)/10+D20)) -> 
C22: =IF($C23=0,"",(($C$23-$C$13)/10+C21)) -> 0.9 | D22: =IF($D23=0,"",(($D$23-$D$13)/10+D21)) -> 
B23: Max | C23: 1
B24: Actual | D24: =IF(OR(C24="",D23=""),"",IF(C24=C13,D13,(D23-D13)/((C23-C13)/(C24-C13))+D13)) ->  | E24: =IF(D8="","",IF(C24<C13,"Error",((12.74*$D$5*$D$6*$D$7^3*(D24/60)^3)/($D$10*$D$8))^0.5)) -> 
C26: Source: Mixing in Coagulation and Flocculation, AWWARF 1991
B28: NOTE:
B29: You will need to enter the data for each walking-beam mixer
B30: and then tranfer the resulting G value to the appropriate
B31: box on the JarSettingsHELP screen. For example,
B32: if the plant has three-stage flocculation, the table will
B33: need to be filled out once for each stage.

Sheet Database
A1: Date & | N1: Current | O1: Other | P1: Current Dose | Q1: Other | R1: Current Dose | V1: Rapid Mix | W1: Rapid Mix | X1: Rapid Mix | Y1: Rapid Mix | Z1: Floc | AA1: Floc | AB1: Floc | AC1: Floc | AD1: Floc | AE1: Floc | AG1: Stock Solution Concentration | AJ1: Raw Water | AK1: Jar 1 | AL1: Jar 1 | AM1: Jar 1 | AN1: Jar 1 | AO1: Jar 1 | AP1: Jar 1 | AQ1: Jar 1 | AR1: Jar 1 | AS1: Jar 1 | AT1: Jar 1 | AU1: Jar 2 | AV1: Jar 2 | AW1: Jar 2 | AX1: Jar 2 | AY1: Jar 2 | AZ1: Jar 2 | BA1: Jar 2 | BB1: Jar 2 | BC1: Jar 2 | BD1: Jar 2 | BE1: Jar 3 | BF1: Jar 3 | BG1: Jar 3 | BH1: Jar 3 | BI1: Jar 3 | BJ1: Jar 3 | BK1: Jar 3 | BL1: Jar 3 | BM1: Jar 3 | BN1: Jar 3 | BO1: Jar 4 | BP1: Jar 4 | BQ1: Jar 4 | BR1: Jar 4 | BS1: Jar 4 | BT1: Jar 4 | BU1: Jar 4 | BV1: Jar 4 | BW1: Jar 4 | BX1: Jar 4 | BY1: Jar 5 | BZ1: Jar 5 | CA1: Jar 5 | CB1: Jar 5 | CC1: Jar 5 | CD1: Jar 5 | CE1: Jar 5 | CF1: Jar 5 | CG1: Jar 5 | CH1: Jar 5 | CI1: Jar 6 | CJ1: Jar 6 | CK1: Jar 6 | CL1: Jar 6 | CM1: Jar 6 | CN1: Jar 6 | CO1: Jar 6 | CP1: Jar 6 | CQ1: Jar 6 | CR1: Jar 6
A2: Sample No. | C2: Plant/Train | D2: Water | E2: Test | F2: Test | G2: Raw | H2: Water | I2: Water | J2: Raw | K2: Raw | L2: Raw | M2: Coagulant | N2: Dose | O2: Chemical 1 | P2: Other | Q2: Chemical 2 | R2: Other | S2: Settled | T2: IFE | U2: Finished | V2: Speed | W2: Time | X2: Speed | Y2: Time | Z2: Stage 1 | AA2: Stage 1 | AB2: Stage 2 | AC2: Stage 2 | AD2: Stage 3 | AE2: Stage 3 | AF2: Settle | AG2: Coagulant | AH2: Other | AI2: Other | AJ2: Added to | AK2: Coagulant | AL2: Other Chem 1 | AM2: Other Chem 2 | AN2: Time to Floc | AO2: Floc | AP2: Settled | AQ2: Settled | AR2: Filtered | AS2: Settled | AT2: Settled | AU2: Coagulant | AV2: Other Chem 1 | AW2: Other Chem 2 | AX2: Time to Floc | AY2: Floc | AZ2: Settled | BA2: Settled | BB2: Filtered | BC2: Settled | BD2: Settled | BE2: Coagulant | BF2: Other Chem 1 | BG2: Other Chem 2 | BH2: Time to Floc | BI2: Floc | BJ2: Settled | BK2: Settled | BL2: Filtered | BM2: Settled | BN2: Settled | BO2: Coagulant | BP2: Other Chem 1 | BQ2: Other Chem 2 | BR2: Time to Floc | BS2: Floc | BT2: Settled | BU2: Settled | BV2: Filtered | BW2: Settled | BX2: Settled | BY2: Coagulant | BZ2: Other Chem 1 | CA2: Other Chem 2 | CB2: Time to Floc | CC2: Floc | CD2: Settled | CE2: Settled | CF2: Filtered | CG2: Settled | CH2: Settled | CI2: Coagulant | CJ2: Other Chem 1 | CK2: Other Chem 2 | CL2: Time to | CM2: Floc | CN2: Settled | CO2: Settled | CP2: Filtered | CQ2: Settled | CR2: Settled | CS2: Last
A3: 43678 | B3: Date | C3: Name | D3: Source | E3: No. | F3: Time | G3: Turbidity | H3: Temperature | I3: Flow | J3: pH | K3: TOC | L3: Alkalinity | M3: Name | N3: Coagulant | O3: Name | P3: Chemical 1 | Q3: Name | R3: Chemical 2 | S3: Turbidity | T3: Turbidity | U3: TOC | V3: #1 | W3: #1 | X3: #2 | Y3: #2 | Z3: Speed | AA3: Time | AB3: Speed | AC3: Time | AD3: Speed | AE3: Time | AF3: Time | AH3: Chemical 1 | AI3: Chemical 2 | AJ3: Jars | AK3: Dose | AL3: Dose | AM3: Dose | AN3: Formation | AO3: Size | AP3: Turb | AQ3: pH | AR3: Turb | AS3: TOC | AT3: UV absorb | AU3: Dose | AV3: Dose | AW3: Dose | AX3: Formation | AY3: Size | AZ3: Turb | BA3: pH | BB3: Turb | BC3: TOC | BD3: UV absorb | BE3: Dose | BF3: Dose | BG3: Dose | BH3: Formation | BI3: Size | BJ3: Turb | BK3: pH | BL3: Turb | BM3: TOC | BN3: UV absorb | BO3: Dose | BP3: Dose | BQ3: Dose | BR3: Formation | BS3: Size | BT3: Turb | BU3: pH | BV3: Turb | BW3: TOC | BX3: UV absorb | BY3: Dose | BZ3: Dose | CA3: Dose | CB3: Formation | CC3: Size | CD3: Turb | CE3: pH | CF3: Turb | CG3: TOC | CH3: UV absorb | CI3: Dose | CJ3: Dose | CK3: Dose | CL3: Floc | CM3: Size | CN3: Turb | CO3: pH | CP3: Turb | CQ3: TOC | CR3: UV absorb | CS3: Column
A4: # | B4: m/d/y | E4: # | F4: hr:min | G4: NTU | H4: C | I4: MGD | J4: units | K4: mg/L | L4: mg/L | V4: RPM | W4: min | X4: RPM | Y4: min | Z4: RPM | AA4: min | AB4: RPM | AC4: min | AD4: RPM | AE4: min | AF4: min | AG4: % | AH4: % | AI4: % | AJ4: mL | AK4: mg/L | AL4: mg/L | AM4: mg/L | AN4: min | AO4: mm | AP4: NTU | AQ4: units | AR4: NTU | AS4: mg/L | AT4: cm-1 | AU4: mg/L | AV4: mg/L | AW4: mg/L | AX4: min | AY4: mm | AZ4: NTU | BA4: units | BB4: NTU | BC4: mg/L | BD4: cm-1 | BE4: mg/L | BF4: mg/L | BG4: mg/L | BH4: min | BI4: mm | BJ4: NTU | BK4: units | BL4: NTU | BM4: mg/L | BN4: cm-1 | BO4: mg/L | BP4: mg/L | BQ4: mg/L | BR4: min | BS4: mm | BT4: NTU | BU4: units | BV4: NTU | BW4: mg/L | BX4: cm-1 | BY4: mg/L | BZ4: mg/L | CA4: mg/L | CB4: min | CC4: mm | CD4: NTU | CE4: units | CF4: NTU | CG4: mg/L | CH4: cm-1 | CI4: mg/L | CJ4: mg/L | CK4: mg/L | CL4: min | CM4: mm | CN4: NTU | CO4: units | CP4: NTU | CQ4: mg/L | CR4: cm-1
A5: 1 | B5: 2 | C5: 3 | D5: 4 | E5: 5 | F5: 6 | G5: 7 | H5: 8 | I5: 9 | J5: 10 | K5: 11 | L5: 12 | M5: 13 | N5: 14 | O5: 15 | P5: 16 | Q5: 17 | R5: 18 | S5: 19 | T5: 20 | U5: 21 | V5: 22 | W5: 23 | X5: 24 | Y5: 25 | Z5: 26 | AA5: 27 | AB5: 28 | AC5: 29 | AD5: 30 | AE5: 31 | AF5: 32 | AG5: 33 | AH5: 34 | AI5: 35 | AJ5: 36 | AK5: 37 | AL5: 38 | AM5: 39 | AN5: 40 | AO5: 41 | AP5: 42 | AQ5: 43 | AR5: 44 | AS5: 45 | AT5: 46 | AU5: 47 | AV5: 48 | AW5: 49 | AX5: 50 | AY5: 51 | AZ5: 52 | BA5: 53 | BB5: 54 | BC5: 55 | BD5: 56 | BE5: 57 | BF5: 58 | BG5: 59 | BH5: 60 | BI5: 61 | BJ5: 62 | BK5: 63 | BL5: 64 | BM5: 65 | BN5: 66 | BO5: 67 | BP5: 68 | BQ5: 69 | BR5: 70 | BS5: 71 | BT5: 72 | BU5: 73 | BV5: 74 | BW5: 75 | BX5: 76 | BY5: 77 | BZ5: 78 | CA5: 79 | CB5: 80 | CC5: 81 | CD5: 82 | CE5: 83 | CF5: 84 | CG5: 85 | CH5: 86 | CI5: 87 | CJ5: 88 | CK5: 89 | CL5: 90 | CM5: 91 | CN5: 92 | CO5: 93 | CP5: 94 | CQ5: 95 | CR5: 96 | CS5: 97
A6: 37044.01 | B6: 2001-06-02 | C6: Example | D6: Wilson Lake | E6: 1 | F6: 09:00:00 | G6: 6 | H6: 15 | I6: 7 | J6: 7.4 | K6: 4 | L6: 65 | M6: Alum | N6: 20 | O6: Cat Floc | P6: 1 | Q6: Nalco 8109 | R6: 0.05 | S6: 2 | T6: 0.15 | U6: 2.2 | V6: 100 | W6: 60 | Z6: 40 | AA6: 15 | AB6: 30 | AC6: 15 | AD6: 15 | AE6: 15 | AF6: 10 | AK6: 10 | AL6: 2.5 | AM6: 0.05 | AN6: 4 | AO6: 0.5 | AP6: 4 | AQ6: 7.3 | AR6: 0.15 | AS6: 3.8 | AT6: 0.07 | AU6: 20 | AV6: 3 | AW6: 0.1 | AX6: 3 | AY6: 0.5 | AZ6: 3.8 | BA6: 7.2 | BB6: 0.14 | BC6: 3.7 | BD6: 0.065 | BE6: 30 | BF6: 3.5 | BG6: 0.15 | BH6: 2 | BI6: 1 | BJ6: 3.5 | BK6: 7.1 | BL6: 0.13 | BM6: 3.5 | BN6: 0.06 | BO6: 40 | BP6: 4 | BQ6: 0.2 | BR6: 1 | BS6: 2 | BT6: 3 | BU6: 7 | BV6: 0.12 | BW6: 3.3 | BX6: 0.055 | BY6: 50 | BZ6: 4.5 | CA6: 0.25 | CB6: 1 | CC6: 2 | CD6: 2.8 | CE6: 6.9 | CF6: 0.1 | CG6: 3.2 | CH6: 0.05 | CI6: 60 | CJ6: 5 | CK6: 0.3 | CL6: 1 | CM6: 2 | CN6: 3.5 | CO6: 6.8 | CP6: 0.14 | CQ6: 3 | CR6: 0.04
A7: 37559.01 | B7: 2002-10-30 | C7: Thibodaux WTP | D7: Bayou Lafourche | E7: 1 | F7: 02:00:00 | G7: 53 | H7: 23.7 | I7: 1.44 | J7: 7 | K7: 7.7 | L7: 72 | M7: Alum | V7: 5 | W7: 100 | Z7: 40 | AA7: 25 | AF7: 10 | AG7: 2 | AJ7: 2000 | AP7: 47.1 | AQ7: 6.85 | AU7: 20 | AX7: 10 | AZ7: 45.8 | BA7: 6.85 | BE7: 40 | BH7: 2 | BJ7: 14.4 | BK7: 6.75 | BO7: 60 | BR7: 2 | BT7: 1.38 | BU7: 6.67 | BY7: 80 | CB7: 2 | CD7: 1.74 | CE7: 6.57 | CI7: 100 | CL7: 2 | CN7: 2.06 | CO7: 6.49
A8: 37685.01 | B8: 2003-03-05 | C8: Winchester WTP | D8: Kentucky River | E8: 1 | F8: 15:00:00 | G8: 9.9 | H8: 6 | I8: 2.5 | J8: 7.7 | L8: 122 | M8: Thermafloc | V8: 80 | W8: 100 | Z8: 52 | AA8: 14 | AB8: 15 | AC8: 14 | AF8: 15 | AG8: 2 | AJ8: 2000 | AK8: 10 | AP8: 10.2 | AQ8: 7.35 | AT8: 0.0755 | AU8: 20 | AZ8: 4.2 | BA8: 7.15 | BD8: 0.064 | BE8: 30 | BJ8: 3 | BK8: 7.19 | BN8: 0.058 | BO8: 40 | BT8: 3.2 | BU8: 7.16 | BX8: 0.053 | BY8: 50 | CD8: 0.8 | CE8: 7.29 | CH8: 0.052 | CI8: 60 | CN8: 1.45 | CO8: 7.12 | CR8: 0.0445
A9: 38477.01 | B9: 2005-05-05 | C9: Algiers WTP | D9: Mississippi River | E9: 1 | F9: 00:00:00 | H9: 20 | I9: 10 | M9: Ferric Sulfate | N9: 7.25 | O9: Magnafloc | P9: 6.9 | Q9: Lime | R9: 55 | V9: 47 | W9: 33 | X9: 118 | Y9: 2 | Z9: 45 | AA9: 44 | AG9: 0.15 | AH9: 0.15 | AI9: 1.5 | AJ9: 1500 | AL9: 6.9 | AM9: 55 | AU9: 3 | AV9: 6.9 | AW9: 55 | BE9: 6 | BF9: 6.9 | BG9: 55 | BO9: 7.25 | BP9: 6.9 | BQ9: 55 | BY9: 9 | BZ9: 6.9 | CA9: 55 | CI9: 12 | CJ9: 6.9 | CK9: 55
A10: 43678 | B10: 2019-08-01 | C10: Ottawa, KS | F10: 00:00:00 | G10: 6.5 | H10: 26.2 | I10: 3.744 | J10: 7.7
